Publisher Label,Publisher URI,"Supplier ID","Supplier","Amount £","Purpose","Transaction Number","Payment Date","Organisational Unit","Cost Centre(T)","Internal Category Number"
"Wolverhampton City Council","http://opendatacommunities.org/id/metropolitan-district-council/wolverhampton","700044","Access To Business","17,250.00","TPP - Social Care Support Services","130253912","22/05/2019","Enterprise","Access to Business","R5501"
"Wolverhampton City Council","http://opendatacommunities.org/id/metropolitan-district-council/wolverhampton","700044","Access To Business","-7,465.70","Training Expenses","130248277","22/05/2019","Local Economy","Universal Credit","R1650"
"Wolverhampton City Council","http://opendatacommunities.org/id/metropolitan-district-council/wolverhampton","700044","Access To Business","300.00","Training Expenses","130252819","08/05/2019","Adult Education","Staff Development","R1650"
"Wolverhampton City Council","http://opendatacommunities.org/id/metropolitan-district-council/wolverhampton","700264","Acorn Environmental Mgt Group Limited","151.09","Grounds Maintenance - Contract","130254319","24/05/2019","Environmental Maintenance","Arbor Scheme","R2075"
"Wolverhampton City Council","http://opendatacommunities.org/id/metropolitan-district-council/wolverhampton","700264","Acorn Environmental Mgt Group Limited","3,755.31","Grounds Maintenance - Contract","130252121","01/05/2019","Environmental Maintenance","Arbor Scheme","R2075"
"Wolverhampton City Council","http://opendatacommunities.org/id/metropolitan-district-council/wolverhampton","700264","Acorn Environmental Mgt Group Limited","7,922.58","Grounds Maintenance - Contract","130252120","01/05/2019","Environmental Maintenance","Arbor Scheme","R2075"
"Wolverhampton City Council","http://opendatacommunities.org/id/metropolitan-district-council/wolverhampton","700330","Acorns Childrens Hospice Trust","250.00","Donations","190591902","08/05/2019","Public Service Reform","Mayoral Expenses","R9140"
"Wolverhampton City Council","http://opendatacommunities.org/id/metropolitan-district-council/wolverhampton","700341","Acs Business Supplies Limited","593.63","Stationery","130251834","08/05/2019","Public Service Reform","European Elections","R4308"
"Wolverhampton City Council","http://opendatacommunities.org/id/metropolitan-district-council/wolverhampton","700341","Acs Business Supplies Limited","387.12","Stationery","130251835","08/05/2019","School Planning & Resources","Music Support Team","R4308"
"Wolverhampton City Council","http://opendatacommunities.org/id/metropolitan-district-council/wolverhampton","700341","Acs Business Supplies Limited","36.91","Stationery","130251837","08/05/2019","Governance Services","Business Support (Corporate Admin Review)","R4308"
"Wolverhampton City Council","http://opendatacommunities.org/id/metropolitan-district-council/wolverhampton","700341","Acs Business Supplies Limited","-121.68","Stationery","130250235","08/05/2019","Governance Services","Business Support (Corporate Admin Review)","R4308"
"Wolverhampton City Council","http://opendatacommunities.org/id/metropolitan-district-council/wolverhampton","700341","Acs Business Supplies Limited","34.23","Stationery","130251645","08/05/2019","Specialist Support","Vulnerable Young Persons Team","R4308"
"Wolverhampton City Council","http://opendatacommunities.org/id/metropolitan-district-council/wolverhampton","700341","Acs Business Supplies Limited","68.96","Stationery","130252014","10/05/2019","Adults Assessment & Care Management North","Adult Services � North","R4308"
"Wolverhampton City Council","http://opendatacommunities.org/id/metropolitan-district-council/wolverhampton","700341","Acs Business Supplies Limited","8.99","Stationery","130252015","10/05/2019","ICTS","Document Centre - General","R4308"
"Wolverhampton City Council","http://opendatacommunities.org/id/metropolitan-district-council/wolverhampton","700341","Acs Business Supplies Limited","45.93","Stationery","130251836","08/05/2019","Governance Services","Business Support (Corporate Admin Review)","R4308"
"Wolverhampton City Council","http://opendatacommunities.org/id/metropolitan-district-council/wolverhampton","700341","Acs Business Supplies Limited","25.81","Stationery","130251836","08/05/2019","Governance Services","Business Support (Corporate Admin Review)","R4308"
"Wolverhampton City Council","http://opendatacommunities.org/id/metropolitan-district-council/wolverhampton","700341","Acs Business Supplies Limited","433.39","Stationery","130251833","08/05/2019","Adult Education","Business Support Services","R4308"
"Wolverhampton City Council","http://opendatacommunities.org/id/metropolitan-district-council/wolverhampton","700341","Acs Business Supplies Limited","77.31","Stationery","130252820","29/05/2019","Specialist Support","Upper Pendeford Farm Short Breaks Centre","R4308"
"Wolverhampton City Council","http://opendatacommunities.org/id/metropolitan-district-council/wolverhampton","700341","Acs Business Supplies Limited","225.20","Stationery","130252951","29/05/2019","Customer Services","City Direct","R4308"
"Wolverhampton City Council","http://opendatacommunities.org/id/metropolitan-district-council/wolverhampton","700341","Acs Business Supplies Limited","8.99","Stationery","130252019","15/05/2019","ICTS","Document Centre - General","R4308"
"Wolverhampton City Council","http://opendatacommunities.org/id/metropolitan-district-council/wolverhampton","700341","Acs Business Supplies Limited","131.96","Stationery","130239293","15/05/2019","Governance Services","Business Support (Corporate Admin Review)","R4308"
"Wolverhampton City Council","http://opendatacommunities.org/id/metropolitan-district-council/wolverhampton","700341","Acs Business Supplies Limited","23.47","Stationery","130252018","15/05/2019","Governance Services","Business Support (Corporate Admin Review)","R4308"
"Wolverhampton City Council","http://opendatacommunities.org/id/metropolitan-district-council/wolverhampton","700341","Acs Business Supplies Limited","-131.96","Stationery","130253147","15/05/2019","Governance Services","Business Support (Corporate Admin Review)","R4308"
"Wolverhampton City Council","http://opendatacommunities.org/id/metropolitan-district-council/wolverhampton","700341","Acs Business Supplies Limited","44.99","Stationery","130251013","01/05/2019","Revenues & Benefits","Revenues","R4308"
"Wolverhampton City Council","http://opendatacommunities.org/id/metropolitan-district-council/wolverhampton","700341","Acs Business Supplies Limited","188.79","Stationery","130251011","01/05/2019","ICTS","Document Centre - General","R4308"
"Wolverhampton City Council","http://opendatacommunities.org/id/metropolitan-district-council/wolverhampton","700341","Acs Business Supplies Limited","28.08","Stationery","130252017","15/05/2019","Governance Services","Business Support (Corporate Admin Review)","R4308"
"Wolverhampton City Council","http://opendatacommunities.org/id/metropolitan-district-council/wolverhampton","700341","Acs Business Supplies Limited","2.92","Stationery","130252017","15/05/2019","Governance Services","Business Support (Corporate Admin Review)","R4308"
"Wolverhampton City Council","http://opendatacommunities.org/id/metropolitan-district-council/wolverhampton","700341","Acs Business Supplies Limited","52.35","Stationery","130251012","01/05/2019","Special Educational Needs","SEN Special Education Admin","R4308"
"Wolverhampton City Council","http://opendatacommunities.org/id/metropolitan-district-council/wolverhampton","700341","Acs Business Supplies Limited","39.35","Stationery","130252016","10/05/2019","Governance Services","Business Support (Corporate Admin Review)","R4308"
"Wolverhampton City Council","http://opendatacommunities.org/id/metropolitan-district-council/wolverhampton","700341","Acs Business Supplies Limited","33.03","Stationery","130253149","29/05/2019","Governance Services","Business Support (Corporate Admin Review)","R4308"
"Wolverhampton City Council","http://opendatacommunities.org/id/metropolitan-district-council/wolverhampton","700341","Acs Business Supplies Limited","-139.80","Stationery","130253774","29/05/2019","Governance Services","Business Support (Corporate Admin Review)","R4308"
"Wolverhampton City Council","http://opendatacommunities.org/id/metropolitan-district-council/wolverhampton","700341","Acs Business Supplies Limited","63.21","Stationery","130252821","29/05/2019","Governance Services","Business Support (Corporate Admin Review)","R4308"
"Wolverhampton City Council","http://opendatacommunities.org/id/metropolitan-district-council/wolverhampton","700341","Acs Business Supplies Limited","37.20","Stationery","130252821","29/05/2019","Governance Services","Business Support (Corporate Admin Review)","R4308"
"Wolverhampton City Council","http://opendatacommunities.org/id/metropolitan-district-council/wolverhampton","700341","Acs Business Supplies Limited","349.90","Stationery","130252314","22/05/2019","Adult Education","Business Support Services","R4308"
"Wolverhampton City Council","http://opendatacommunities.org/id/metropolitan-district-council/wolverhampton","700341","Acs Business Supplies Limited","29.29","Stationery","130252316","22/05/2019","Governance Services","Business Support (Corporate Admin Review)","R4308"
"Wolverhampton City Council","http://opendatacommunities.org/id/metropolitan-district-council/wolverhampton","700341","Acs Business Supplies Limited","86.95","Stationery","130252485","22/05/2019","Local Economy","Global Budgets","R4308"
"Wolverhampton City Council","http://opendatacommunities.org/id/metropolitan-district-council/wolverhampton","700341","Acs Business Supplies Limited","3,500.00","Stationery","130252013","17/05/2019","Adult Education","Business Support Services","R4308"
"Wolverhampton City Council","http://opendatacommunities.org/id/metropolitan-district-council/wolverhampton","700341","Acs Business Supplies Limited","-34.95","Stationery","130253773","15/05/2019","Governance Services","Business Support (Corporate Admin Review)","R4308"
"Wolverhampton City Council","http://opendatacommunities.org/id/metropolitan-district-council/wolverhampton","700341","Acs Business Supplies Limited","50.68","Stationery","130251015","01/05/2019","Governance Services","Business Support (Corporate Admin Review)","R4308"
"Wolverhampton City Council","http://opendatacommunities.org/id/metropolitan-district-council/wolverhampton","700341","Acs Business Supplies Limited","38.97","Stationery","130252315","22/05/2019","Governance Services","Business Support (Corporate Admin Review)","R4308"
"Wolverhampton City Council","http://opendatacommunities.org/id/metropolitan-district-council/wolverhampton","700341","Acs Business Supplies Limited","16.95","Stationery","130252315","22/05/2019","Governance Services","Business Support (Corporate Admin Review)","R4308"
"Wolverhampton City Council","http://opendatacommunities.org/id/metropolitan-district-council/wolverhampton","700341","Acs Business Supplies Limited","190.02","Stationery","130252312","22/05/2019","Adult Education","Business Support Services","R4308"
"Wolverhampton City Council","http://opendatacommunities.org/id/metropolitan-district-council/wolverhampton","700341","Acs Business Supplies Limited","179.80","Stationery","130252313","22/05/2019","ICTS","Document Centre - General","R4308"
"Wolverhampton City Council","http://opendatacommunities.org/id/metropolitan-district-council/wolverhampton","700341","Acs Business Supplies Limited","79.46","Stationery","130252625","22/05/2019","Learning Disability Provider","Ernest Bold Court","R4308"
"Wolverhampton City Council","http://opendatacommunities.org/id/metropolitan-district-council/wolverhampton","700341","Acs Business Supplies Limited","148.02","Stationery","130251017","01/05/2019","Governance Services","Business Support (Corporate Admin Review)","R4308"
"Wolverhampton City Council","http://opendatacommunities.org/id/metropolitan-district-council/wolverhampton","700341","Acs Business Supplies Limited","30.35","Stationery","130251016","01/05/2019","Governance Services","Business Support (Corporate Admin Review)","R4308"
"Wolverhampton City Council","http://opendatacommunities.org/id/metropolitan-district-council/wolverhampton","700341","Acs Business Supplies Limited","20.85","Stationery","130251446","08/05/2019","Specialist Support","Vulnerable Young Persons Team","R4308"
"Wolverhampton City Council","http://opendatacommunities.org/id/metropolitan-district-council/wolverhampton","700341","Acs Business Supplies Limited","-17.34","Stationery","130250236","08/05/2019","Governance Services","Business Support (Corporate Admin Review)","R4308"
"Wolverhampton City Council","http://opendatacommunities.org/id/metropolitan-district-council/wolverhampton","700341","Acs Business Supplies Limited","93.45","Stationery","130251219","08/05/2019","Children & Young People In Care","RAA - Regional Adoption Agency","R4308"
"Wolverhampton City Council","http://opendatacommunities.org/id/metropolitan-district-council/wolverhampton","700396","Action Centres UK Limited","383.33","Education trips, Holidays, Outings & Activities","130252626","15/05/2019","Headstart","Headstart - Young People Engagement","R4970"
"Wolverhampton City Council","http://opendatacommunities.org/id/metropolitan-district-council/wolverhampton","700604","P Kitterick","830.00","TPP - Maintenance Contractor - General","190588419","01/05/2019","Transportation","Cycling Schemes - Bikeability","R5720"
"Wolverhampton City Council","http://opendatacommunities.org/id/metropolitan-district-council/wolverhampton","700663","Partisip8/P Sicilia","1,120.00","TPP - Maintenance Contractor - General","190588422","01/05/2019","Transportation","Cycling Schemes - Bikeability","R5720"
"Wolverhampton City Council","http://opendatacommunities.org/id/metropolitan-district-council/wolverhampton","700762","R Millington","670.00","TPP - Maintenance Contractor - General","190588419","01/05/2019","Transportation","Cycling Schemes - Bikeability","R5720"
"Wolverhampton City Council","http://opendatacommunities.org/id/metropolitan-district-council/wolverhampton","700770","Adt Fire And Security PLC","353.07","Services - Security","130250463","15/05/2019","Maintenance Programme","Centralised R&M","R4405"
"Wolverhampton City Council","http://opendatacommunities.org/id/metropolitan-district-council/wolverhampton","700770","Adt Fire And Security PLC","466.28","Services - Security","130253150","22/05/2019","Maintenance Programme","Centralised R&M","R4405"
"Wolverhampton City Council","http://opendatacommunities.org/id/metropolitan-district-council/wolverhampton","700770","Adt Fire And Security PLC","221.74","Fixtures and Fittings - R&M","130248592","22/05/2019","Maintenance Programme","Centralised R&M","R2502"
"Wolverhampton City Council","http://opendatacommunities.org/id/metropolitan-district-council/wolverhampton","700770","Adt Fire And Security PLC","39.00","Services - Security","130251220","22/05/2019","Maintenance Programme","Centralised R&M","R4405"
"Wolverhampton City Council","http://opendatacommunities.org/id/metropolitan-district-council/wolverhampton","700770","Adt Fire And Security PLC","275.00","Services - Security","130251220","22/05/2019","Maintenance Programme","Centralised R&M","R4405"
"Wolverhampton City Council","http://opendatacommunities.org/id/metropolitan-district-council/wolverhampton","700770","Adt Fire And Security PLC","56.67","Services - Security","130252822","22/05/2019","Maintenance Programme","Centralised R&M","R4405"
"Wolverhampton City Council","http://opendatacommunities.org/id/metropolitan-district-council/wolverhampton","700770","Adt Fire And Security PLC","273.28","Services - Security","130251509","22/05/2019","Maintenance Programme","Centralised R&M","R4405"
"Wolverhampton City Council","http://opendatacommunities.org/id/metropolitan-district-council/wolverhampton","700770","Adt Fire And Security PLC","348.38","Services - Security","130252632","22/05/2019","Maintenance Programme","Centralised R&M","R4405"
"Wolverhampton City Council","http://opendatacommunities.org/id/metropolitan-district-council/wolverhampton","700770","Adt Fire And Security PLC","231.00","Services - Security","130252319","22/05/2019","Maintenance Programme","Centralised R&M","R4405"
"Wolverhampton City Council","http://opendatacommunities.org/id/metropolitan-district-council/wolverhampton","700770","Adt Fire And Security PLC","151.00","Services - Security","130251330","15/05/2019","Maintenance Programme","Centralised R&M","R4405"
"Wolverhampton City Council","http://opendatacommunities.org/id/metropolitan-district-council/wolverhampton","700770","Adt Fire And Security PLC","273.00","Services - Security","130252629","10/05/2019","Maintenance Programme","Centralised R&M","R4405"
"Wolverhampton City Council","http://opendatacommunities.org/id/metropolitan-district-council/wolverhampton","700770","Adt Fire And Security PLC","153.60","Services - Security","130253023","29/05/2019","Maintenance Programme","Centralised R&M","R4405"
"Wolverhampton City Council","http://opendatacommunities.org/id/metropolitan-district-council/wolverhampton","700770","Adt Fire And Security PLC","740.00","R&M - Departmental planned (internal)","130252122","08/05/2019","Maintenance Programme","Centralised R&M","R2000"
"Wolverhampton City Council","http://opendatacommunities.org/id/metropolitan-district-council/wolverhampton","700770","Adt Fire And Security PLC","-206.48","Fixtures and Fittings - R&M","130252630","08/05/2019","Maintenance Programme","Centralised R&M","R2502"
"Wolverhampton City Council","http://opendatacommunities.org/id/metropolitan-district-council/wolverhampton","700979","Af Blakemore/Blakemore Foodservice","118.31","Provisions (Not for resale)","130254261","22/05/2019","Older People Provider Services","Blakenhall Resource Centre","R4101"
"Wolverhampton City Council","http://opendatacommunities.org/id/metropolitan-district-council/wolverhampton","700979","Af Blakemore/Blakemore Foodservice","-9.72","Provisions (Resale)","130254260","22/05/2019","Visitor Economy","Bantock - Tea Rooms","R4102"
"Wolverhampton City Council","http://opendatacommunities.org/id/metropolitan-district-council/wolverhampton","700979","Af Blakemore/Blakemore Foodservice","346.74","Provisions (Resale)","130251338","08/05/2019","Visitor Economy","Art Gallery Tea Room","R4102"
"Wolverhampton City Council","http://opendatacommunities.org/id/metropolitan-district-council/wolverhampton","700979","Af Blakemore/Blakemore Foodservice","110.64","Provisions (Resale)","130251333","03/05/2019","Visitor Economy","Art Gallery Tea Room","R4102"
"Wolverhampton City Council","http://opendatacommunities.org/id/metropolitan-district-council/wolverhampton","700979","Af Blakemore/Blakemore Foodservice","43.62","Provisions (Resale)","130251337","03/05/2019","Visitor Economy","Art Gallery Tea Room","R4102"
"Wolverhampton City Council","http://opendatacommunities.org/id/metropolitan-district-council/wolverhampton","700979","Af Blakemore/Blakemore Foodservice","34.32","Provisions (Resale)","130251337","03/05/2019","Visitor Economy","Art Gallery Tea Room","R4102"
"Wolverhampton City Council","http://opendatacommunities.org/id/metropolitan-district-council/wolverhampton","700979","Af Blakemore/Blakemore Foodservice","220.78","Provisions (Not for resale)","130254053","24/05/2019","Older People Provider Services","Blakenhall Resource Centre","R4101"
"Wolverhampton City Council","http://opendatacommunities.org/id/metropolitan-district-council/wolverhampton","700979","Af Blakemore/Blakemore Foodservice","233.55","Provisions (Resale)","130251339","03/05/2019","Visitor Economy","Art Gallery Tea Room","R4102"
"Wolverhampton City Council","http://opendatacommunities.org/id/metropolitan-district-council/wolverhampton","701100","Aggregate Industries UK Limited","96.73","Materials","130251840","08/05/2019","Highways Maintenance","Patching","R4007"
"Wolverhampton City Council","http://opendatacommunities.org/id/metropolitan-district-council/wolverhampton","701100","Aggregate Industries UK Limited","156.25","Materials","130251340","08/05/2019","Highways Maintenance","Patching","R4007"
"Wolverhampton City Council","http://opendatacommunities.org/id/metropolitan-district-council/wolverhampton","701100","Aggregate Industries UK Limited","159.97","Materials","130253673","29/05/2019","Highways Maintenance","Patching","R4007"
"Wolverhampton City Council","http://opendatacommunities.org/id/metropolitan-district-council/wolverhampton","701100","Aggregate Industries UK Limited","124.01","Materials","130252633","24/05/2019","Highways Maintenance","Patching","R4007"
"Wolverhampton City Council","http://opendatacommunities.org/id/metropolitan-district-council/wolverhampton","701100","Aggregate Industries UK Limited","128.97","Materials","130250873","03/05/2019","Highways Maintenance","Patching","R4007"
"Wolverhampton City Council","http://opendatacommunities.org/id/metropolitan-district-council/wolverhampton","701100","Aggregate Industries UK Limited","260.42","Materials","130253917","29/05/2019","Highways Maintenance","Patching","R4007"
"Wolverhampton City Council","http://opendatacommunities.org/id/metropolitan-district-council/wolverhampton","701100","Aggregate Industries UK Limited","126.49","Materials","130251841","10/05/2019","Highways Maintenance","Patching","R4007"
"Wolverhampton City Council","http://opendatacommunities.org/id/metropolitan-district-council/wolverhampton","701100","Aggregate Industries UK Limited","124.01","Materials","130250872","01/05/2019","Highways Maintenance","Patching","R4007"
"Wolverhampton City Council","http://opendatacommunities.org/id/metropolitan-district-council/wolverhampton","701100","Aggregate Industries UK Limited","126.49","Materials","130252488","22/05/2019","Highways Maintenance","Patching","R4007"
"Wolverhampton City Council","http://opendatacommunities.org/id/metropolitan-district-council/wolverhampton","701100","Aggregate Industries UK Limited","131.45","Materials","130252231","17/05/2019","Highways Maintenance","Patching","R4007"
"Wolverhampton City Council","http://opendatacommunities.org/id/metropolitan-district-council/wolverhampton","701100","Aggregate Industries UK Limited","379.47","Materials","130252406","22/05/2019","Highways Maintenance","Patching","R4007"
"Wolverhampton City Council","http://opendatacommunities.org/id/metropolitan-district-council/wolverhampton","701100","Aggregate Industries UK Limited","121.53","Materials","130252123","17/05/2019","Highways Maintenance","Patching","R4007"
"Wolverhampton City Council","http://opendatacommunities.org/id/metropolitan-district-council/wolverhampton","701100","Aggregate Industries UK Limited","136.41","Materials","130250592","01/05/2019","Highways Maintenance","Patching","R4007"
"Wolverhampton City Council","http://opendatacommunities.org/id/metropolitan-district-council/wolverhampton","701100","Aggregate Industries UK Limited","112.66","Materials","130252487","17/05/2019","Highways Maintenance","Patching","R4007"
"Wolverhampton City Council","http://opendatacommunities.org/id/metropolitan-district-council/wolverhampton","701100","Aggregate Industries UK Limited","123.50","Materials","130252486","17/05/2019","Highways Maintenance","Patching","R4007"
"Wolverhampton City Council","http://opendatacommunities.org/id/metropolitan-district-council/wolverhampton","701210","Air Methods Limited","6,016.47","R&M - Departmental planned (external)","130253420","17/05/2019","Maintenance Programme","Civic Centre Repairs & Maintenance","R2001"
"Wolverhampton City Council","http://opendatacommunities.org/id/metropolitan-district-council/wolverhampton","701265","Airport Express West Midlands Limited","960.00","Client Transport","130252953","08/05/2019","Special Educational Needs","Secondary- Transport","R3042"
"Wolverhampton City Council","http://opendatacommunities.org/id/metropolitan-district-council/wolverhampton","701276","Airport-Link","1,295.00","Client Transport","130252634","08/05/2019","Special Educational Needs","Special - Transport","R3042"
"Wolverhampton City Council","http://opendatacommunities.org/id/metropolitan-district-council/wolverhampton","701393","Aldersley Church Early Learning Committee","11,177.93","TPP - Private Nursery Education Funding","190596458","22/05/2019","Early Years","Early Years Universal Entitlement for 3 and 4 Year Olds","R5035"
"Wolverhampton City Council","http://opendatacommunities.org/id/metropolitan-district-council/wolverhampton","701393","Aldersley Church Early Learning Committee","1,037.52","TPP - Private Nursery Education Funding","190596450","22/05/2019","Early Years","Early Years Entitlement Funding for Disadvantaged 2 Year Olds","R5035"
"Wolverhampton City Council","http://opendatacommunities.org/id/metropolitan-district-council/wolverhampton","701397","Aldridge Trimming","245.00","Equipment - Purchase","190592407","10/05/2019","Fleet Services","Fleet Management","R4000"
"Wolverhampton City Council","http://opendatacommunities.org/id/metropolitan-district-council/wolverhampton","701417","All Saints Action Network Limited","9,573.48","TPP - Private Nursery Education Funding","190596450","22/05/2019","Early Years","Early Years Entitlement Funding for Disadvantaged 2 Year Olds","R5035"
"Wolverhampton City Council","http://opendatacommunities.org/id/metropolitan-district-council/wolverhampton","701417","All Saints Action Network Limited","21,573.00","TPP - Private Nursery Education Funding","190596458","22/05/2019","Early Years","Early Years Universal Entitlement for 3 and 4 Year Olds","R5035"
"Wolverhampton City Council","http://opendatacommunities.org/id/metropolitan-district-council/wolverhampton","701431","Allglass Systems Limited","5,881.19","Construction and Conversion","130252635","08/05/2019","-","Capital Maintenance - Roof / Ceilings Replacements","C1100"
"Wolverhampton City Council","http://opendatacommunities.org/id/metropolitan-district-council/wolverhampton","701437","Allsorts Office Supplies Limited","165.00","Furniture","130253779","17/05/2019","Adults Assessment & Care Management East","Hospital Team","R4004"
"Wolverhampton City Council","http://opendatacommunities.org/id/metropolitan-district-council/wolverhampton","701439","Allstar Business Solutions Limited","71.62","Petrol","190589275","01/05/2019","Fleet Services","Fleet Management","R3000"
"Wolverhampton City Council","http://opendatacommunities.org/id/metropolitan-district-council/wolverhampton","701439","Allstar Business Solutions Limited","1,294.59","Petrol","190589275","01/05/2019","Fleet Services","Fleet Management","R3000"
"Wolverhampton City Council","http://opendatacommunities.org/id/metropolitan-district-council/wolverhampton","701439","Allstar Business Solutions Limited","1.65","Petrol","190595338","17/05/2019","Fleet Services","Fleet Management","R3000"
"Wolverhampton City Council","http://opendatacommunities.org/id/metropolitan-district-council/wolverhampton","701439","Allstar Business Solutions Limited","1,263.92","Petrol","190595338","17/05/2019","Fleet Services","Fleet Management","R3000"
"Wolverhampton City Council","http://opendatacommunities.org/id/metropolitan-district-council/wolverhampton","701439","Allstar Business Solutions Limited","184.33","Petrol","190595338","17/05/2019","Fleet Services","Fleet Management","R3000"
"Wolverhampton City Council","http://opendatacommunities.org/id/metropolitan-district-council/wolverhampton","701439","Allstar Business Solutions Limited","3.30","Petrol","190592433","10/05/2019","Fleet Services","Fleet Management","R3000"
"Wolverhampton City Council","http://opendatacommunities.org/id/metropolitan-district-council/wolverhampton","701439","Allstar Business Solutions Limited","1,112.30","Petrol","190592433","10/05/2019","Fleet Services","Fleet Management","R3000"
"Wolverhampton City Council","http://opendatacommunities.org/id/metropolitan-district-council/wolverhampton","701439","Allstar Business Solutions Limited","89.66","Petrol","190592433","10/05/2019","Fleet Services","Fleet Management","R3000"
"Wolverhampton City Council","http://opendatacommunities.org/id/metropolitan-district-council/wolverhampton","701439","Allstar Business Solutions Limited","103.28","Petrol","190592434","10/05/2019","Fleet Services","Fleet Management","R3000"
"Wolverhampton City Council","http://opendatacommunities.org/id/metropolitan-district-council/wolverhampton","701448","Alphatec 2000 Limited","289.43","Equipment - R & M","130253024","29/05/2019","ICTS","Document Centre - General","R4003"
"Wolverhampton City Council","http://opendatacommunities.org/id/metropolitan-district-council/wolverhampton","701448","Alphatec 2000 Limited","66.70","Equipment - R & M","130253024","29/05/2019","ICTS","Document Centre - General","R4003"
"Wolverhampton City Council","http://opendatacommunities.org/id/metropolitan-district-council/wolverhampton","701459","Alzheimer�S Society","18,223.75","TPP - Social Care Support Services","130252489","24/05/2019","Strategic Commissioning","Head of Strategic Commissioning","R5501"
"Wolverhampton City Council","http://opendatacommunities.org/id/metropolitan-district-council/wolverhampton","701509","Angel Springs Limited (Waterlogic)","19.44","Provisions (Not for resale)","130252126","01/05/2019","Environmental Maintenance","Arbor Scheme","R4101"
"Wolverhampton City Council","http://opendatacommunities.org/id/metropolitan-district-council/wolverhampton","701509","Angel Springs Limited (Waterlogic)","22.00","Catering","130254325","22/05/2019","Local Economy","Global Budgets","R4100"
"Wolverhampton City Council","http://opendatacommunities.org/id/metropolitan-district-council/wolverhampton","701509","Angel Springs Limited (Waterlogic)","30.90","Provisions (Not for resale)","130253153","22/05/2019","School Planning & Resources","Education Data Services","R4101"
"Wolverhampton City Council","http://opendatacommunities.org/id/metropolitan-district-council/wolverhampton","701509","Angel Springs Limited (Waterlogic)","37.68","Provisions (Not for resale)","130252124","01/05/2019","Environmental Maintenance","Ground Maintenance East","R4101"
"Wolverhampton City Council","http://opendatacommunities.org/id/metropolitan-district-council/wolverhampton","701509","Angel Springs Limited (Waterlogic)","187.68","Provisions (Not for resale)","130253025","15/05/2019","Strengthening Families","EI Area 8 -  Children�s Village","R4101"
"Wolverhampton City Council","http://opendatacommunities.org/id/metropolitan-district-council/wolverhampton","701509","Angel Springs Limited (Waterlogic)","63.63","Provisions (Not for resale)","130253527","29/05/2019","School Planning & Resources","Education Data Services","R4101"
"Wolverhampton City Council","http://opendatacommunities.org/id/metropolitan-district-council/wolverhampton","701509","Angel Springs Limited (Waterlogic)","200.20","Provisions (Not for resale)","130252233","29/05/2019","Fleet Services","Fleet Management","R4101"
"Wolverhampton City Council","http://opendatacommunities.org/id/metropolitan-district-council/wolverhampton","701509","Angel Springs Limited (Waterlogic)","15.64","Provisions (Not for resale)","130253155","29/05/2019","Facilities Management","Culwell Street Depot","R4101"
"Wolverhampton City Council","http://opendatacommunities.org/id/metropolitan-district-council/wolverhampton","701509","Angel Springs Limited (Waterlogic)","121.92","Provisions (Not for resale)","130253154","29/05/2019","Facilities Management","Culwell Street Depot","R4101"
"Wolverhampton City Council","http://opendatacommunities.org/id/metropolitan-district-council/wolverhampton","701512","Anglia Dna Services Limited","225.66","Services - Professional Fees","130254535","24/05/2019","Legal Services","Centralised External Legal Costs","R4400"
"Wolverhampton City Council","http://opendatacommunities.org/id/metropolitan-district-council/wolverhampton","701512","Anglia Dna Services Limited","118.50","Services - Professional Fees","130252320","01/05/2019","Legal Services","Centralised External Legal Costs","R4400"
"Wolverhampton City Council","http://opendatacommunities.org/id/metropolitan-district-council/wolverhampton","701512","Anglia Dna Services Limited","158.00","Services - Professional Fees","130254536","29/05/2019","Legal Services","Centralised External Legal Costs","R4400"
"Wolverhampton City Council","http://opendatacommunities.org/id/metropolitan-district-council/wolverhampton","701512","Anglia Dna Services Limited","138.88","Services - Professional Fees","130253026","10/05/2019","Legal Services","Centralised External Legal Costs","R4400"
"Wolverhampton City Council","http://opendatacommunities.org/id/metropolitan-district-council/wolverhampton","701534","Antalis Limited","275.40","Stationery","130251842","15/05/2019","ICTS","Document Centre - General","R4308"
"Wolverhampton City Council","http://opendatacommunities.org/id/metropolitan-district-council/wolverhampton","701534","Antalis Limited","33.57","Stationery","130251842","15/05/2019","ICTS","Document Centre - General","R4308"
"Wolverhampton City Council","http://opendatacommunities.org/id/metropolitan-district-council/wolverhampton","701534","Antalis Limited","1,268.00","Stationery","130251843","15/05/2019","ICTS","Document Centre - General","R4308"
"Wolverhampton City Council","http://opendatacommunities.org/id/metropolitan-district-council/wolverhampton","701547","Apetito Limited","1,064.44","Provisions (Resale)","130253028","29/05/2019","Catering","Meals on Wheels","R4102"
"Wolverhampton City Council","http://opendatacommunities.org/id/metropolitan-district-council/wolverhampton","701547","Apetito Limited","1,455.48","Provisions (Resale)","130251347","15/05/2019","Catering","Meals on Wheels","R4102"
"Wolverhampton City Council","http://opendatacommunities.org/id/metropolitan-district-council/wolverhampton","701547","Apetito Limited","1,175.31","Provisions (Resale)","130252234","15/05/2019","Catering","Meals on Wheels","R4102"
"Wolverhampton City Council","http://opendatacommunities.org/id/metropolitan-district-council/wolverhampton","701547","Apetito Limited","1,639.61","Provisions (Resale)","130252127","15/05/2019","Catering","Meals on Wheels","R4102"
"Wolverhampton City Council","http://opendatacommunities.org/id/metropolitan-district-council/wolverhampton","701547","Apetito Limited","1,351.49","Provisions (Resale)","130252954","22/05/2019","Catering","Meals on Wheels","R4102"
"Wolverhampton City Council","http://opendatacommunities.org/id/metropolitan-district-council/wolverhampton","701547","Apetito Limited","19.68","Provisions (Resale)","130252955","22/05/2019","Catering","Meals on Wheels","R4102"
"Wolverhampton City Council","http://opendatacommunities.org/id/metropolitan-district-council/wolverhampton","701547","Apetito Limited","1,643.26","Provisions (Resale)","130251510","15/05/2019","Catering","Meals on Wheels","R4102"
"Wolverhampton City Council","http://opendatacommunities.org/id/metropolitan-district-council/wolverhampton","701547","Apetito Limited","1,504.39","Provisions (Resale)","130252021","08/05/2019","Catering","Meals on Wheels","R4102"
"Wolverhampton City Council","http://opendatacommunities.org/id/metropolitan-district-council/wolverhampton","701547","Apetito Limited","-72.47","Provisions (Resale)","130252020","15/05/2019","Catering","Meals on Wheels","R4102"
"Wolverhampton City Council","http://opendatacommunities.org/id/metropolitan-district-council/wolverhampton","701547","Apetito Limited","1,141.59","Provisions (Resale)","130250877","01/05/2019","Catering","Meals on Wheels","R4102"
"Wolverhampton City Council","http://opendatacommunities.org/id/metropolitan-district-council/wolverhampton","701547","Apetito Limited","1,070.02","Provisions (Resale)","130243590","10/05/2019","Catering","Meals on Wheels","R4102"
"Wolverhampton City Council","http://opendatacommunities.org/id/metropolitan-district-council/wolverhampton","701547","Apetito Limited","1,047.82","Provisions (Resale)","130253528","29/05/2019","Catering","Meals on Wheels","R4102"
"Wolverhampton City Council","http://opendatacommunities.org/id/metropolitan-district-council/wolverhampton","701547","Apetito Limited","985.68","Provisions (Resale)","130252490","24/05/2019","Catering","Meals on Wheels","R4102"
"Wolverhampton City Council","http://opendatacommunities.org/id/metropolitan-district-council/wolverhampton","701547","Apetito Limited","24.10","Provisions (Resale)","130251511","08/05/2019","Catering","Meals on Wheels","R4102"
"Wolverhampton City Council","http://opendatacommunities.org/id/metropolitan-district-council/wolverhampton","701564","AQA Education","2,265.60","Exam Expenses (Non-Employee)","130253529","15/05/2019","Adult Education","Discretionary Fund","R4630"
"Wolverhampton City Council","http://opendatacommunities.org/id/metropolitan-district-council/wolverhampton","701564","AQA Education","2,098.50","Exam Expenses (Non-Employee)","130250593","01/05/2019","Adult Education","Discretionary Fund","R4630"
"Wolverhampton City Council","http://opendatacommunities.org/id/metropolitan-district-council/wolverhampton","701603","Arnold Clark Finance Limited","18.12","Hire of Vehicles","190594878","15/05/2019","Fleet Services","Fleet Management","R3200"
"Wolverhampton City Council","http://opendatacommunities.org/id/metropolitan-district-council/wolverhampton","701603","Arnold Clark Finance Limited","18.12","Hire of Vehicles","190594873","15/05/2019","Fleet Services","Fleet Management","R3200"
"Wolverhampton City Council","http://opendatacommunities.org/id/metropolitan-district-council/wolverhampton","701603","Arnold Clark Finance Limited","28.71","Hire of Vehicles","190594873","15/05/2019","Fleet Services","Fleet Management","R3200"
"Wolverhampton City Council","http://opendatacommunities.org/id/metropolitan-district-council/wolverhampton","701603","Arnold Clark Finance Limited","242.00","Hire of Vehicles","190594876","15/05/2019","Fleet Services","Fleet Management","R3200"
"Wolverhampton City Council","http://opendatacommunities.org/id/metropolitan-district-council/wolverhampton","701603","Arnold Clark Finance Limited","12.75","Hire of Vehicles","190598258","29/05/2019","Fleet Services","Fleet Management","R3200"
"Wolverhampton City Council","http://opendatacommunities.org/id/metropolitan-district-council/wolverhampton","701603","Arnold Clark Finance Limited","111.92","Hire of Vehicles","190598260","29/05/2019","Fleet Services","Fleet Management","R3200"
"Wolverhampton City Council","http://opendatacommunities.org/id/metropolitan-district-council/wolverhampton","701603","Arnold Clark Finance Limited","54.60","Hire of Vehicles","190598266","29/05/2019","Fleet Services","Fleet Management","R3200"
"Wolverhampton City Council","http://opendatacommunities.org/id/metropolitan-district-council/wolverhampton","701603","Arnold Clark Finance Limited","18.46","Hire of Vehicles","190598277","29/05/2019","Fleet Services","Fleet Management","R3200"
"Wolverhampton City Council","http://opendatacommunities.org/id/metropolitan-district-council/wolverhampton","701603","Arnold Clark Finance Limited","33.88","Hire of Vehicles","190598283","29/05/2019","Fleet Services","Fleet Management","R3200"
"Wolverhampton City Council","http://opendatacommunities.org/id/metropolitan-district-council/wolverhampton","701603","Arnold Clark Finance Limited","324.24","Hire of Vehicles","190598281","29/05/2019","Fleet Services","Fleet Management","R3200"
"Wolverhampton City Council","http://opendatacommunities.org/id/metropolitan-district-council/wolverhampton","701603","Arnold Clark Finance Limited","36.24","Hire of Vehicles","190598270","29/05/2019","Fleet Services","Fleet Management","R3200"
"Wolverhampton City Council","http://opendatacommunities.org/id/metropolitan-district-council/wolverhampton","701603","Arnold Clark Finance Limited","139.90","Hire of Vehicles","190598264","29/05/2019","Fleet Services","Fleet Management","R3200"
"Wolverhampton City Council","http://opendatacommunities.org/id/metropolitan-district-council/wolverhampton","701603","Arnold Clark Finance Limited","23.25","Hire of Vehicles","190598273","29/05/2019","Fleet Services","Fleet Management","R3200"
"Wolverhampton City Council","http://opendatacommunities.org/id/metropolitan-district-council/wolverhampton","701603","Arnold Clark Finance Limited","324.24","Hire of Vehicles","190598261","29/05/2019","Fleet Services","Fleet Management","R3200"
"Wolverhampton City Council","http://opendatacommunities.org/id/metropolitan-district-council/wolverhampton","701603","Arnold Clark Finance Limited","100.80","Hire of Vehicles","190598263","29/05/2019","Fleet Services","Fleet Management","R3200"
"Wolverhampton City Council","http://opendatacommunities.org/id/metropolitan-district-council/wolverhampton","701603","Arnold Clark Finance Limited","41.88","Hire of Vehicles","190598278","29/05/2019","Fleet Services","Fleet Management","R3200"
"Wolverhampton City Council","http://opendatacommunities.org/id/metropolitan-district-council/wolverhampton","701603","Arnold Clark Finance Limited","18.46","Hire of Vehicles","190598275","29/05/2019","Fleet Services","Fleet Management","R3200"
"Wolverhampton City Council","http://opendatacommunities.org/id/metropolitan-district-council/wolverhampton","701603","Arnold Clark Finance Limited","97.90","Hire of Vehicles","190598269","29/05/2019","Fleet Services","Fleet Management","R3200"
"Wolverhampton City Council","http://opendatacommunities.org/id/metropolitan-district-council/wolverhampton","701603","Arnold Clark Finance Limited","39.36","Hire of Vehicles","190598269","29/05/2019","Fleet Services","Fleet Management","R3200"
"Wolverhampton City Council","http://opendatacommunities.org/id/metropolitan-district-council/wolverhampton","701603","Arnold Clark Finance Limited","23.69","Hire of Vehicles","190598274","29/05/2019","Fleet Services","Fleet Management","R3200"
"Wolverhampton City Council","http://opendatacommunities.org/id/metropolitan-district-council/wolverhampton","701603","Arnold Clark Finance Limited","18.12","Hire of Vehicles","190598268","29/05/2019","Fleet Services","Fleet Management","R3200"
"Wolverhampton City Council","http://opendatacommunities.org/id/metropolitan-district-council/wolverhampton","701603","Arnold Clark Finance Limited","269.50","Hire of Vehicles","190598271","29/05/2019","Fleet Services","Fleet Management","R3200"
"Wolverhampton City Council","http://opendatacommunities.org/id/metropolitan-district-council/wolverhampton","701603","Arnold Clark Finance Limited","47.38","Hire of Vehicles","190598280","29/05/2019","Fleet Services","Fleet Management","R3200"
"Wolverhampton City Council","http://opendatacommunities.org/id/metropolitan-district-council/wolverhampton","701603","Arnold Clark Finance Limited","80.64","Hire of Vehicles","190598279","29/05/2019","Fleet Services","Fleet Management","R3200"
"Wolverhampton City Council","http://opendatacommunities.org/id/metropolitan-district-council/wolverhampton","701603","Arnold Clark Finance Limited","67.76","Hire of Vehicles","190598282","29/05/2019","Fleet Services","Fleet Management","R3200"
"Wolverhampton City Council","http://opendatacommunities.org/id/metropolitan-district-council/wolverhampton","701603","Arnold Clark Finance Limited","18.12","Hire of Vehicles","190594874","15/05/2019","Fleet Services","Fleet Management","R3200"
"Wolverhampton City Council","http://opendatacommunities.org/id/metropolitan-district-council/wolverhampton","701603","Arnold Clark Finance Limited","81.25","Hire of Vehicles","190593448","15/05/2019","Fleet Services","Fleet Management","R3200"
"Wolverhampton City Council","http://opendatacommunities.org/id/metropolitan-district-council/wolverhampton","701603","Arnold Clark Finance Limited","15.15","Hire of Vehicles","190593457","15/05/2019","Fleet Services","Fleet Management","R3200"
"Wolverhampton City Council","http://opendatacommunities.org/id/metropolitan-district-council/wolverhampton","701603","Arnold Clark Finance Limited","18.12","Hire of Vehicles","190593452","15/05/2019","Fleet Services","Fleet Management","R3200"
"Wolverhampton City Council","http://opendatacommunities.org/id/metropolitan-district-council/wolverhampton","701603","Arnold Clark Finance Limited","64.38","Hire of Vehicles","190593454","15/05/2019","Fleet Services","Fleet Management","R3200"
"Wolverhampton City Council","http://opendatacommunities.org/id/metropolitan-district-council/wolverhampton","701603","Arnold Clark Finance Limited","100.80","Hire of Vehicles","190593462","15/05/2019","Fleet Services","Fleet Management","R3200"
"Wolverhampton City Council","http://opendatacommunities.org/id/metropolitan-district-council/wolverhampton","701603","Arnold Clark Finance Limited","21.64","Hire of Vehicles","190593466","15/05/2019","Fleet Services","Fleet Management","R3200"
"Wolverhampton City Council","http://opendatacommunities.org/id/metropolitan-district-council/wolverhampton","701603","Arnold Clark Finance Limited","18.12","Hire of Vehicles","190593467","15/05/2019","Fleet Services","Fleet Management","R3200"
"Wolverhampton City Council","http://opendatacommunities.org/id/metropolitan-district-council/wolverhampton","701603","Arnold Clark Finance Limited","139.90","Hire of Vehicles","190593468","15/05/2019","Fleet Services","Fleet Management","R3200"
"Wolverhampton City Council","http://opendatacommunities.org/id/metropolitan-district-council/wolverhampton","701603","Arnold Clark Finance Limited","43.65","Hire of Vehicles","190593472","15/05/2019","Fleet Services","Fleet Management","R3200"
"Wolverhampton City Council","http://opendatacommunities.org/id/metropolitan-district-council/wolverhampton","701603","Arnold Clark Finance Limited","83.76","Hire of Vehicles","190593481","15/05/2019","Fleet Services","Fleet Management","R3200"
"Wolverhampton City Council","http://opendatacommunities.org/id/metropolitan-district-council/wolverhampton","701603","Arnold Clark Finance Limited","36.24","Hire of Vehicles","190593486","15/05/2019","Fleet Services","Fleet Management","R3200"
"Wolverhampton City Council","http://opendatacommunities.org/id/metropolitan-district-council/wolverhampton","701603","Arnold Clark Finance Limited","195.00","Hire of Vehicles","190593485","15/05/2019","Fleet Services","Fleet Management","R3200"
"Wolverhampton City Council","http://opendatacommunities.org/id/metropolitan-district-council/wolverhampton","701603","Arnold Clark Finance Limited","18.12","Hire of Vehicles","190594875","15/05/2019","Fleet Services","Fleet Management","R3200"
"Wolverhampton City Council","http://opendatacommunities.org/id/metropolitan-district-council/wolverhampton","701603","Arnold Clark Finance Limited","100.80","Hire of Vehicles","190593445","15/05/2019","Fleet Services","Fleet Management","R3200"
"Wolverhampton City Council","http://opendatacommunities.org/id/metropolitan-district-council/wolverhampton","701603","Arnold Clark Finance Limited","23.25","Hire of Vehicles","190593443","15/05/2019","Fleet Services","Fleet Management","R3200"
"Wolverhampton City Council","http://opendatacommunities.org/id/metropolitan-district-council/wolverhampton","701603","Arnold Clark Finance Limited","81.25","Hire of Vehicles","190593449","15/05/2019","Fleet Services","Fleet Management","R3200"
"Wolverhampton City Council","http://opendatacommunities.org/id/metropolitan-district-council/wolverhampton","701603","Arnold Clark Finance Limited","18.12","Hire of Vehicles","190593453","15/05/2019","Fleet Services","Fleet Management","R3200"
"Wolverhampton City Council","http://opendatacommunities.org/id/metropolitan-district-council/wolverhampton","701603","Arnold Clark Finance Limited","43.46","Hire of Vehicles","190593463","15/05/2019","Fleet Services","Fleet Management","R3200"
"Wolverhampton City Council","http://opendatacommunities.org/id/metropolitan-district-council/wolverhampton","701603","Arnold Clark Finance Limited","14.55","Hire of Vehicles","190593464","15/05/2019","Fleet Services","Fleet Management","R3200"
"Wolverhampton City Council","http://opendatacommunities.org/id/metropolitan-district-council/wolverhampton","701603","Arnold Clark Finance Limited","100.80","Hire of Vehicles","190593469","15/05/2019","Fleet Services","Fleet Management","R3200"
"Wolverhampton City Council","http://opendatacommunities.org/id/metropolitan-district-council/wolverhampton","701603","Arnold Clark Finance Limited","23.25","Hire of Vehicles","190593471","15/05/2019","Fleet Services","Fleet Management","R3200"
"Wolverhampton City Council","http://opendatacommunities.org/id/metropolitan-district-council/wolverhampton","701603","Arnold Clark Finance Limited","26.00","Hire of Vehicles","190593471","15/05/2019","Fleet Services","Fleet Management","R3200"
"Wolverhampton City Council","http://opendatacommunities.org/id/metropolitan-district-council/wolverhampton","701603","Arnold Clark Finance Limited","139.90","Hire of Vehicles","190593477","15/05/2019","Fleet Services","Fleet Management","R3200"
"Wolverhampton City Council","http://opendatacommunities.org/id/metropolitan-district-council/wolverhampton","701603","Arnold Clark Finance Limited","38.25","Hire of Vehicles","190593473","15/05/2019","Fleet Services","Fleet Management","R3200"
"Wolverhampton City Council","http://opendatacommunities.org/id/metropolitan-district-council/wolverhampton","701603","Arnold Clark Finance Limited","18.12","Hire of Vehicles","190593474","15/05/2019","Fleet Services","Fleet Management","R3200"
"Wolverhampton City Council","http://opendatacommunities.org/id/metropolitan-district-council/wolverhampton","701603","Arnold Clark Finance Limited","36.24","Hire of Vehicles","190593489","15/05/2019","Fleet Services","Fleet Management","R3200"
"Wolverhampton City Council","http://opendatacommunities.org/id/metropolitan-district-council/wolverhampton","701603","Arnold Clark Finance Limited","139.90","Hire of Vehicles","190593460","15/05/2019","Fleet Services","Fleet Management","R3200"
"Wolverhampton City Council","http://opendatacommunities.org/id/metropolitan-district-council/wolverhampton","701603","Arnold Clark Finance Limited","100.80","Hire of Vehicles","190593461","15/05/2019","Fleet Services","Fleet Management","R3200"
"Wolverhampton City Council","http://opendatacommunities.org/id/metropolitan-district-council/wolverhampton","701603","Arnold Clark Finance Limited","18.12","Hire of Vehicles","190593456","15/05/2019","Fleet Services","Fleet Management","R3200"
"Wolverhampton City Council","http://opendatacommunities.org/id/metropolitan-district-council/wolverhampton","701603","Arnold Clark Finance Limited","18.12","Hire of Vehicles","190593476","15/05/2019","Fleet Services","Fleet Management","R3200"
"Wolverhampton City Council","http://opendatacommunities.org/id/metropolitan-district-council/wolverhampton","701603","Arnold Clark Finance Limited","12.75","Hire of Vehicles","190593482","15/05/2019","Fleet Services","Fleet Management","R3200"
"Wolverhampton City Council","http://opendatacommunities.org/id/metropolitan-district-council/wolverhampton","701603","Arnold Clark Finance Limited","100.80","Hire of Vehicles","190593478","15/05/2019","Fleet Services","Fleet Management","R3200"
"Wolverhampton City Council","http://opendatacommunities.org/id/metropolitan-district-council/wolverhampton","701603","Arnold Clark Finance Limited","41.88","Hire of Vehicles","190593480","15/05/2019","Fleet Services","Fleet Management","R3200"
"Wolverhampton City Council","http://opendatacommunities.org/id/metropolitan-district-council/wolverhampton","701603","Arnold Clark Finance Limited","60.90","Hire of Vehicles","190593479","15/05/2019","Fleet Services","Fleet Management","R3200"
"Wolverhampton City Council","http://opendatacommunities.org/id/metropolitan-district-council/wolverhampton","701603","Arnold Clark Finance Limited","324.24","Hire of Vehicles","190593484","15/05/2019","Fleet Services","Fleet Management","R3200"
"Wolverhampton City Council","http://opendatacommunities.org/id/metropolitan-district-council/wolverhampton","701603","Arnold Clark Finance Limited","23.25","Hire of Vehicles","190593487","15/05/2019","Fleet Services","Fleet Management","R3200"
"Wolverhampton City Council","http://opendatacommunities.org/id/metropolitan-district-council/wolverhampton","701603","Arnold Clark Finance Limited","80.64","Hire of Vehicles","190593488","15/05/2019","Fleet Services","Fleet Management","R3200"
"Wolverhampton City Council","http://opendatacommunities.org/id/metropolitan-district-council/wolverhampton","701603","Arnold Clark Finance Limited","18.12","Hire of Vehicles","190598262","29/05/2019","Fleet Services","Fleet Management","R3200"
"Wolverhampton City Council","http://opendatacommunities.org/id/metropolitan-district-council/wolverhampton","701603","Arnold Clark Finance Limited","23.69","Hire of Vehicles","190598272","29/05/2019","Fleet Services","Fleet Management","R3200"
"Wolverhampton City Council","http://opendatacommunities.org/id/metropolitan-district-council/wolverhampton","701603","Arnold Clark Finance Limited","48.72","Hire of Vehicles","190598267","29/05/2019","Fleet Services","Fleet Management","R3200"
"Wolverhampton City Council","http://opendatacommunities.org/id/metropolitan-district-council/wolverhampton","701603","Arnold Clark Finance Limited","80.64","Hire of Vehicles","190598259","29/05/2019","Fleet Services","Fleet Management","R3200"
"Wolverhampton City Council","http://opendatacommunities.org/id/metropolitan-district-council/wolverhampton","701603","Arnold Clark Finance Limited","111.92","Hire of Vehicles","190598265","29/05/2019","Fleet Services","Fleet Management","R3200"
"Wolverhampton City Council","http://opendatacommunities.org/id/metropolitan-district-council/wolverhampton","701603","Arnold Clark Finance Limited","28.51","Hire of Vehicles","190598276","29/05/2019","Fleet Services","Fleet Management","R3200"
"Wolverhampton City Council","http://opendatacommunities.org/id/metropolitan-district-council/wolverhampton","701603","Arnold Clark Finance Limited","100.80","Hire of Vehicles","190593447","15/05/2019","Fleet Services","Fleet Management","R3200"
"Wolverhampton City Council","http://opendatacommunities.org/id/metropolitan-district-council/wolverhampton","701603","Arnold Clark Finance Limited","62.08","Hire of Vehicles","190593444","15/05/2019","Fleet Services","Fleet Management","R3200"
"Wolverhampton City Council","http://opendatacommunities.org/id/metropolitan-district-council/wolverhampton","701603","Arnold Clark Finance Limited","48.72","Hire of Vehicles","190593446","15/05/2019","Fleet Services","Fleet Management","R3200"
"Wolverhampton City Council","http://opendatacommunities.org/id/metropolitan-district-council/wolverhampton","701603","Arnold Clark Finance Limited","41.88","Hire of Vehicles","190593451","15/05/2019","Fleet Services","Fleet Management","R3200"
"Wolverhampton City Council","http://opendatacommunities.org/id/metropolitan-district-council/wolverhampton","701603","Arnold Clark Finance Limited","139.90","Hire of Vehicles","190593450","15/05/2019","Fleet Services","Fleet Management","R3200"
"Wolverhampton City Council","http://opendatacommunities.org/id/metropolitan-district-council/wolverhampton","701603","Arnold Clark Finance Limited","324.24","Hire of Vehicles","190593458","15/05/2019","Fleet Services","Fleet Management","R3200"
"Wolverhampton City Council","http://opendatacommunities.org/id/metropolitan-district-council/wolverhampton","701603","Arnold Clark Finance Limited","81.25","Hire of Vehicles","190593459","15/05/2019","Fleet Services","Fleet Management","R3200"
"Wolverhampton City Council","http://opendatacommunities.org/id/metropolitan-district-council/wolverhampton","701603","Arnold Clark Finance Limited","18.12","Hire of Vehicles","190593455","15/05/2019","Fleet Services","Fleet Management","R3200"
"Wolverhampton City Council","http://opendatacommunities.org/id/metropolitan-district-council/wolverhampton","701603","Arnold Clark Finance Limited","23.25","Hire of Vehicles","190593465","15/05/2019","Fleet Services","Fleet Management","R3200"
"Wolverhampton City Council","http://opendatacommunities.org/id/metropolitan-district-council/wolverhampton","701603","Arnold Clark Finance Limited","100.80","Hire of Vehicles","190593470","15/05/2019","Fleet Services","Fleet Management","R3200"
"Wolverhampton City Council","http://opendatacommunities.org/id/metropolitan-district-council/wolverhampton","701603","Arnold Clark Finance Limited","18.12","Hire of Vehicles","190593475","15/05/2019","Fleet Services","Fleet Management","R3200"
"Wolverhampton City Council","http://opendatacommunities.org/id/metropolitan-district-council/wolverhampton","701603","Arnold Clark Finance Limited","14.55","Hire of Vehicles","190593483","15/05/2019","Fleet Services","Fleet Management","R3200"
"Wolverhampton City Council","http://opendatacommunities.org/id/metropolitan-district-council/wolverhampton","701603","Arnold Clark Finance Limited","18.12","Hire of Vehicles","190594879","15/05/2019","Fleet Services","Fleet Management","R3200"
"Wolverhampton City Council","http://opendatacommunities.org/id/metropolitan-district-council/wolverhampton","701603","Arnold Clark Finance Limited","20.00","Hire of Vehicles","190594879","15/05/2019","Fleet Services","Fleet Management","R3200"
"Wolverhampton City Council","http://opendatacommunities.org/id/metropolitan-district-council/wolverhampton","701603","Arnold Clark Finance Limited","18.12","Hire of Vehicles","190594877","15/05/2019","Fleet Services","Fleet Management","R3200"
"Wolverhampton City Council","http://opendatacommunities.org/id/metropolitan-district-council/wolverhampton","701613","Arthur Brett (Catering) Limited","15,939.33","Provisions (Resale)","130255251","31/05/2019","Catering","Education Catering - General Overheads","R4102"
"Wolverhampton City Council","http://opendatacommunities.org/id/metropolitan-district-council/wolverhampton","701613","Arthur Brett (Catering) Limited","18.27","Provisions (Resale)","130253674","22/05/2019","Older People Provider Services","Blakenhall Resource Centre","R4102"
"Wolverhampton City Council","http://opendatacommunities.org/id/metropolitan-district-council/wolverhampton","701613","Arthur Brett (Catering) Limited","24.85","Provisions (Resale)","130251447","01/05/2019","Older People Provider Services","Blakenhall Resource Centre","R4102"
"Wolverhampton City Council","http://opendatacommunities.org/id/metropolitan-district-council/wolverhampton","701613","Arthur Brett (Catering) Limited","133.75","Provisions (Resale)","130255253","31/05/2019","Catering","Meals on Wheels","R4102"
"Wolverhampton City Council","http://opendatacommunities.org/id/metropolitan-district-council/wolverhampton","701613","Arthur Brett (Catering) Limited","10.99","Provisions (Resale)","130252128","01/05/2019","Older People Provider Services","Blakenhall Resource Centre","R4102"
"Wolverhampton City Council","http://opendatacommunities.org/id/metropolitan-district-council/wolverhampton","701613","Arthur Brett (Catering) Limited","108.97","Provisions (Resale)","130249825","31/05/2019","Visitor Economy","Bantock - Tea Rooms","R4102"
"Wolverhampton City Council","http://opendatacommunities.org/id/metropolitan-district-council/wolverhampton","701613","Arthur Brett (Catering) Limited","20.08","Provisions (Resale)","130254326","29/05/2019","Older People Provider Services","Blakenhall Resource Centre","R4102"
"Wolverhampton City Council","http://opendatacommunities.org/id/metropolitan-district-council/wolverhampton","701613","Arthur Brett (Catering) Limited","40,502.38","Provisions (Resale)","130252825","08/05/2019","Catering","Education Catering - General Overheads","R4102"
"Wolverhampton City Council","http://opendatacommunities.org/id/metropolitan-district-council/wolverhampton","701613","Arthur Brett (Catering) Limited","26.16","Provisions (Resale)","130252491","08/05/2019","Older People Provider Services","Blakenhall Resource Centre","R4102"
"Wolverhampton City Council","http://opendatacommunities.org/id/metropolitan-district-council/wolverhampton","701613","Arthur Brett (Catering) Limited","15.32","Provisions (Resale)","130253029","15/05/2019","Older People Provider Services","Blakenhall Resource Centre","R4102"
"Wolverhampton City Council","http://opendatacommunities.org/id/metropolitan-district-council/wolverhampton","701613","Arthur Brett (Catering) Limited","1,536.22","Provisions (Resale)","130252826","03/05/2019","Catering","Civic Centre Catering","R4102"
"Wolverhampton City Council","http://opendatacommunities.org/id/metropolitan-district-council/wolverhampton","701613","Arthur Brett (Catering) Limited","32.44","Provisions (Resale)","130250244","31/05/2019","Visitor Economy","Art Gallery Tea Room","R4102"
"Wolverhampton City Council","http://opendatacommunities.org/id/metropolitan-district-council/wolverhampton","701613","Arthur Brett (Catering) Limited","1,268.58","Provisions (Resale)","130255252","31/05/2019","Catering","Civic Centre Catering","R4102"
"Wolverhampton City Council","http://opendatacommunities.org/id/metropolitan-district-council/wolverhampton","701613","Arthur Brett (Catering) Limited","188.22","Provisions (Resale)","130255254","31/05/2019","Leisure Services","WV Active Catering","R4102"
"Wolverhampton City Council","http://opendatacommunities.org/id/metropolitan-district-council/wolverhampton","701613","Arthur Brett (Catering) Limited","40.67","Provisions (Resale)","130255255","31/05/2019","Leisure Services","Bert Williams Leisure Centre Caf�","R4102"
"Wolverhampton City Council","http://opendatacommunities.org/id/metropolitan-district-council/wolverhampton","701613","Arthur Brett (Catering) Limited","13.38","Provisions (Resale)","130249644","31/05/2019","Catering","West Park Tea Room","R4102"
"Wolverhampton City Council","http://opendatacommunities.org/id/metropolitan-district-council/wolverhampton","701613","Arthur Brett (Catering) Limited","154.21","Provisions (Resale)","130252827","03/05/2019","Catering","Meals on Wheels","R4102"
"Wolverhampton City Council","http://opendatacommunities.org/id/metropolitan-district-council/wolverhampton","701626","Asan Management Services Limited","75.00","Room Hire","130252636","08/05/2019","Public Service Reform","Workforce Development","R2201"
"Wolverhampton City Council","http://opendatacommunities.org/id/metropolitan-district-council/wolverhampton","701626","Asan Management Services Limited","80.00","Catering","130252636","08/05/2019","Public Service Reform","Workforce Development","R4100"
"Wolverhampton City Council","http://opendatacommunities.org/id/metropolitan-district-council/wolverhampton","701636","Asdan Limited","541.95","Training Expenses","130252235","15/05/2019","Youth Offending","Bilston Junior Attendance Centre","R1650"
"Wolverhampton City Council","http://opendatacommunities.org/id/metropolitan-district-council/wolverhampton","701639","Ash Rubber Stamp Co.Limited.","108.05","Stationery","130252492","22/05/2019","Legal Services","Legal Services","R4308"
"Wolverhampton City Council","http://opendatacommunities.org/id/metropolitan-district-council/wolverhampton","701648","Ashmore Park Community Association","33.00","Room Hire","130252637","03/05/2019","Community Safety","SWP - Infrastructure","R2201"
"Wolverhampton City Council","http://opendatacommunities.org/id/metropolitan-district-council/wolverhampton","701652","Ashton Engineering Co. Limited","215.00","Equipment - Purchase","190592408","10/05/2019","Fleet Services","Fleet Management","R4000"
"Wolverhampton City Council","http://opendatacommunities.org/id/metropolitan-district-council/wolverhampton","701656","Askews & Holts Library Services Limited","27.82","Books","130252024","10/05/2019","Local Economy","Global Budgets","R4309"
"Wolverhampton City Council","http://opendatacommunities.org/id/metropolitan-district-council/wolverhampton","701656","Askews & Holts Library Services Limited","11.88","Books","130251672","10/05/2019","Local Economy","Global Budgets","R4309"
"Wolverhampton City Council","http://opendatacommunities.org/id/metropolitan-district-council/wolverhampton","701656","Askews & Holts Library Services Limited","10.72","Books","130251675","10/05/2019","Local Economy","Global Budgets","R4309"
"Wolverhampton City Council","http://opendatacommunities.org/id/metropolitan-district-council/wolverhampton","701656","Askews & Holts Library Services Limited","42.32","Books","130251653","10/05/2019","Local Economy","Global Budgets","R4309"
"Wolverhampton City Council","http://opendatacommunities.org/id/metropolitan-district-council/wolverhampton","701656","Askews & Holts Library Services Limited","21.16","Books","130251651","10/05/2019","Local Economy","Global Budgets","R4309"
"Wolverhampton City Council","http://opendatacommunities.org/id/metropolitan-district-council/wolverhampton","701656","Askews & Holts Library Services Limited","23.76","Books","130251659","10/05/2019","Local Economy","Global Budgets","R4309"
"Wolverhampton City Council","http://opendatacommunities.org/id/metropolitan-district-council/wolverhampton","701656","Askews & Holts Library Services Limited","286.40","Books","130251656","10/05/2019","Local Economy","Global Budgets","R4309"
"Wolverhampton City Council","http://opendatacommunities.org/id/metropolitan-district-council/wolverhampton","701656","Askews & Holts Library Services Limited","318.99","Books","130251687","10/05/2019","Local Economy","Global Budgets","R4309"
"Wolverhampton City Council","http://opendatacommunities.org/id/metropolitan-district-council/wolverhampton","701656","Askews & Holts Library Services Limited","63.78","Books","130251681","10/05/2019","Local Economy","Global Budgets","R4309"
"Wolverhampton City Council","http://opendatacommunities.org/id/metropolitan-district-council/wolverhampton","701656","Askews & Holts Library Services Limited","34.21","Books","130251704","10/05/2019","Local Economy","Global Budgets","R4309"
"Wolverhampton City Council","http://opendatacommunities.org/id/metropolitan-district-council/wolverhampton","701656","Askews & Holts Library Services Limited","36.22","Books","130251678","10/05/2019","Local Economy","Global Budgets","R4309"
"Wolverhampton City Council","http://opendatacommunities.org/id/metropolitan-district-council/wolverhampton","701656","Askews & Holts Library Services Limited","41.16","Books","130251700","10/05/2019","Local Economy","Global Budgets","R4309"
"Wolverhampton City Council","http://opendatacommunities.org/id/metropolitan-district-council/wolverhampton","701656","Askews & Holts Library Services Limited","22.60","Books","130251697","10/05/2019","Local Economy","Global Budgets","R4309"
"Wolverhampton City Council","http://opendatacommunities.org/id/metropolitan-district-council/wolverhampton","701656","Askews & Holts Library Services Limited","26.23","Books","130251710","10/05/2019","Local Economy","Global Budgets","R4309"
"Wolverhampton City Council","http://opendatacommunities.org/id/metropolitan-district-council/wolverhampton","701656","Askews & Holts Library Services Limited","29.57","Books","130251716","10/05/2019","Local Economy","Global Budgets","R4309"
"Wolverhampton City Council","http://opendatacommunities.org/id/metropolitan-district-council/wolverhampton","701656","Askews & Holts Library Services Limited","10.14","Books","130251712","10/05/2019","Local Economy","Global Budgets","R4309"
"Wolverhampton City Council","http://opendatacommunities.org/id/metropolitan-district-council/wolverhampton","701656","Askews & Holts Library Services Limited","68.41","Books","130251852","10/05/2019","Local Economy","Global Budgets","R4309"
"Wolverhampton City Council","http://opendatacommunities.org/id/metropolitan-district-council/wolverhampton","701656","Askews & Holts Library Services Limited","18.26","Books","130251846","10/05/2019","Local Economy","Global Budgets","R4309"
"Wolverhampton City Council","http://opendatacommunities.org/id/metropolitan-district-council/wolverhampton","701656","Askews & Holts Library Services Limited","18.11","Books","130251850","10/05/2019","Local Economy","Global Budgets","R4309"
"Wolverhampton City Council","http://opendatacommunities.org/id/metropolitan-district-council/wolverhampton","701656","Askews & Holts Library Services Limited","16.96","Books","130251856","10/05/2019","Local Economy","Global Budgets","R4309"
"Wolverhampton City Council","http://opendatacommunities.org/id/metropolitan-district-council/wolverhampton","701656","Askews & Holts Library Services Limited","11.30","Books","130251706","10/05/2019","Local Economy","Global Budgets","R4309"
"Wolverhampton City Council","http://opendatacommunities.org/id/metropolitan-district-council/wolverhampton","701656","Askews & Holts Library Services Limited","61.44","Books","130253167","31/05/2019","Local Economy","Global Budgets","R4309"
"Wolverhampton City Council","http://opendatacommunities.org/id/metropolitan-district-council/wolverhampton","701656","Askews & Holts Library Services Limited","35.79","Books","130248437","31/05/2019","Local Economy","Global Budgets","R4309"
"Wolverhampton City Council","http://opendatacommunities.org/id/metropolitan-district-council/wolverhampton","701656","Askews & Holts Library Services Limited","5.65","Books","130253169","24/05/2019","Local Economy","Global Budgets","R4309"
"Wolverhampton City Council","http://opendatacommunities.org/id/metropolitan-district-council/wolverhampton","701656","Askews & Holts Library Services Limited","61.44","Books","130252830","24/05/2019","Local Economy","Global Budgets","R4309"
"Wolverhampton City Council","http://opendatacommunities.org/id/metropolitan-district-council/wolverhampton","701656","Askews & Holts Library Services Limited","22.75","Books","130252507","24/05/2019","Local Economy","Global Budgets","R4309"
"Wolverhampton City Council","http://opendatacommunities.org/id/metropolitan-district-council/wolverhampton","701656","Askews & Holts Library Services Limited","21.59","Books","130252502","24/05/2019","Local Economy","Global Budgets","R4309"
"Wolverhampton City Council","http://opendatacommunities.org/id/metropolitan-district-council/wolverhampton","701656","Askews & Holts Library Services Limited","11.88","Books","130252505","24/05/2019","Local Economy","Global Budgets","R4309"
"Wolverhampton City Council","http://opendatacommunities.org/id/metropolitan-district-council/wolverhampton","701656","Askews & Holts Library Services Limited","61.44","Books","130253030","24/05/2019","Local Economy","Global Budgets","R4309"
"Wolverhampton City Council","http://opendatacommunities.org/id/metropolitan-district-council/wolverhampton","701656","Askews & Holts Library Services Limited","214.96","Books","130252509","24/05/2019","Local Economy","Global Budgets","R4309"
"Wolverhampton City Council","http://opendatacommunities.org/id/metropolitan-district-council/wolverhampton","701656","Askews & Holts Library Services Limited","11.45","Books","130252501","24/05/2019","Local Economy","Global Budgets","R4309"
"Wolverhampton City Council","http://opendatacommunities.org/id/metropolitan-district-council/wolverhampton","701656","Askews & Holts Library Services Limited","33.62","Books","130252500","24/05/2019","Local Economy","Global Budgets","R4309"
"Wolverhampton City Council","http://opendatacommunities.org/id/metropolitan-district-council/wolverhampton","701656","Askews & Holts Library Services Limited","6.23","Books","130251036","24/05/2019","Local Economy","Global Budgets","R4309"
"Wolverhampton City Council","http://opendatacommunities.org/id/metropolitan-district-council/wolverhampton","701656","Askews & Holts Library Services Limited","20.58","Books","130252238","24/05/2019","Local Economy","Global Budgets","R4309"
"Wolverhampton City Council","http://opendatacommunities.org/id/metropolitan-district-council/wolverhampton","701656","Askews & Holts Library Services Limited","61.44","Books","130253161","24/05/2019","Local Economy","Global Budgets","R4309"
"Wolverhampton City Council","http://opendatacommunities.org/id/metropolitan-district-council/wolverhampton","701656","Askews & Holts Library Services Limited","61.44","Books","130253165","24/05/2019","Local Economy","Global Budgets","R4309"
"Wolverhampton City Council","http://opendatacommunities.org/id/metropolitan-district-council/wolverhampton","701656","Askews & Holts Library Services Limited","5.65","Books","130252643","24/05/2019","Local Economy","Global Budgets","R4309"
"Wolverhampton City Council","http://opendatacommunities.org/id/metropolitan-district-council/wolverhampton","701656","Askews & Holts Library Services Limited","61.44","Books","130253159","24/05/2019","Local Economy","Global Budgets","R4309"
"Wolverhampton City Council","http://opendatacommunities.org/id/metropolitan-district-council/wolverhampton","701656","Askews & Holts Library Services Limited","28.98","Books","130252504","24/05/2019","Local Economy","Global Budgets","R4309"
"Wolverhampton City Council","http://opendatacommunities.org/id/metropolitan-district-council/wolverhampton","701656","Askews & Holts Library Services Limited","61.44","Books","130253168","24/05/2019","Local Economy","Global Budgets","R4309"
"Wolverhampton City Council","http://opendatacommunities.org/id/metropolitan-district-council/wolverhampton","701656","Askews & Holts Library Services Limited","61.44","Books","130253163","24/05/2019","Local Economy","Global Budgets","R4309"
"Wolverhampton City Council","http://opendatacommunities.org/id/metropolitan-district-council/wolverhampton","701656","Askews & Holts Library Services Limited","10.29","Books","130252828","24/05/2019","Local Economy","Global Budgets","R4309"
"Wolverhampton City Council","http://opendatacommunities.org/id/metropolitan-district-council/wolverhampton","701656","Askews & Holts Library Services Limited","68.42","Books","130252239","24/05/2019","Local Economy","Global Budgets","R4309"
"Wolverhampton City Council","http://opendatacommunities.org/id/metropolitan-district-council/wolverhampton","701656","Askews & Holts Library Services Limited","51.89","Books","130251683","10/05/2019","Local Economy","Global Budgets","R4309"
"Wolverhampton City Council","http://opendatacommunities.org/id/metropolitan-district-council/wolverhampton","701656","Askews & Holts Library Services Limited","61.44","Books","130253158","24/05/2019","Local Economy","Global Budgets","R4309"
"Wolverhampton City Council","http://opendatacommunities.org/id/metropolitan-district-council/wolverhampton","701656","Askews & Holts Library Services Limited","31.45","Books","130252503","24/05/2019","Local Economy","Global Budgets","R4309"
"Wolverhampton City Council","http://opendatacommunities.org/id/metropolitan-district-council/wolverhampton","701656","Askews & Holts Library Services Limited","16.95","Books","130252506","24/05/2019","Local Economy","Global Budgets","R4309"
"Wolverhampton City Council","http://opendatacommunities.org/id/metropolitan-district-council/wolverhampton","701656","Askews & Holts Library Services Limited","5.65","Books","130251714","24/05/2019","Local Economy","Global Budgets","R4309"
"Wolverhampton City Council","http://opendatacommunities.org/id/metropolitan-district-council/wolverhampton","701656","Askews & Holts Library Services Limited","48.40","Books","130252237","24/05/2019","Local Economy","Global Budgets","R4309"
"Wolverhampton City Council","http://opendatacommunities.org/id/metropolitan-district-council/wolverhampton","701656","Askews & Holts Library Services Limited","61.44","Books","130253162","24/05/2019","Local Economy","Global Budgets","R4309"
"Wolverhampton City Council","http://opendatacommunities.org/id/metropolitan-district-council/wolverhampton","701656","Askews & Holts Library Services Limited","61.44","Books","130253166","24/05/2019","Local Economy","Global Budgets","R4309"
"Wolverhampton City Council","http://opendatacommunities.org/id/metropolitan-district-council/wolverhampton","701656","Askews & Holts Library Services Limited","61.44","Books","130253170","24/05/2019","Local Economy","Global Budgets","R4309"
"Wolverhampton City Council","http://opendatacommunities.org/id/metropolitan-district-council/wolverhampton","701656","Askews & Holts Library Services Limited","61.44","Books","130253160","24/05/2019","Local Economy","Global Budgets","R4309"
"Wolverhampton City Council","http://opendatacommunities.org/id/metropolitan-district-council/wolverhampton","701656","Askews & Holts Library Services Limited","61.44","Books","130253164","24/05/2019","Local Economy","Global Budgets","R4309"
"Wolverhampton City Council","http://opendatacommunities.org/id/metropolitan-district-council/wolverhampton","701656","Askews & Holts Library Services Limited","28.40","Books","130251030","03/05/2019","Local Economy","Global Budgets","R4309"
"Wolverhampton City Council","http://opendatacommunities.org/id/metropolitan-district-council/wolverhampton","701656","Askews & Holts Library Services Limited","50.57","Books","130251032","03/05/2019","Local Economy","Global Budgets","R4309"
"Wolverhampton City Council","http://opendatacommunities.org/id/metropolitan-district-council/wolverhampton","701656","Askews & Holts Library Services Limited","51.15","Books","130251028","03/05/2019","Local Economy","Global Budgets","R4309"
"Wolverhampton City Council","http://opendatacommunities.org/id/metropolitan-district-council/wolverhampton","701656","Askews & Holts Library Services Limited","36.95","Books","130251031","03/05/2019","Local Economy","Global Budgets","R4309"
"Wolverhampton City Council","http://opendatacommunities.org/id/metropolitan-district-council/wolverhampton","701656","Askews & Holts Library Services Limited","43.92","Books","130252497","17/05/2019","Local Economy","Global Budgets","R4309"
"Wolverhampton City Council","http://opendatacommunities.org/id/metropolitan-district-council/wolverhampton","701656","Askews & Holts Library Services Limited","86.09","Books","130252236","17/05/2019","Local Economy","Global Budgets","R4309"
"Wolverhampton City Council","http://opendatacommunities.org/id/metropolitan-district-council/wolverhampton","701656","Askews & Holts Library Services Limited","59.27","Books","130252494","17/05/2019","Local Economy","Global Budgets","R4309"
"Wolverhampton City Council","http://opendatacommunities.org/id/metropolitan-district-council/wolverhampton","701656","Askews & Holts Library Services Limited","10.29","Books","130252642","22/05/2019","Local Economy","Global Budgets","R4309"
"Wolverhampton City Council","http://opendatacommunities.org/id/metropolitan-district-council/wolverhampton","701656","Askews & Holts Library Services Limited","75.95","Books","130252639","17/05/2019","Local Economy","Global Budgets","R4309"
"Wolverhampton City Council","http://opendatacommunities.org/id/metropolitan-district-council/wolverhampton","701656","Askews & Holts Library Services Limited","21.01","Books","130252498","17/05/2019","Local Economy","Global Budgets","R4309"
"Wolverhampton City Council","http://opendatacommunities.org/id/metropolitan-district-council/wolverhampton","701656","Askews & Holts Library Services Limited","33.47","Books","130252023","22/05/2019","Local Economy","Global Budgets","R4309"
"Wolverhampton City Council","http://opendatacommunities.org/id/metropolitan-district-council/wolverhampton","701656","Askews & Holts Library Services Limited","5.65","Books","130251718","22/05/2019","Local Economy","Global Budgets","R4309"
"Wolverhampton City Council","http://opendatacommunities.org/id/metropolitan-district-council/wolverhampton","701656","Askews & Holts Library Services Limited","21.01","Books","130252829","22/05/2019","Local Economy","Global Budgets","R4309"
"Wolverhampton City Council","http://opendatacommunities.org/id/metropolitan-district-council/wolverhampton","701656","Askews & Holts Library Services Limited","50.72","Books","130252495","17/05/2019","Local Economy","Global Budgets","R4309"
"Wolverhampton City Council","http://opendatacommunities.org/id/metropolitan-district-council/wolverhampton","701656","Askews & Holts Library Services Limited","21.59","Books","130252640","17/05/2019","Local Economy","Global Budgets","R4309"
"Wolverhampton City Council","http://opendatacommunities.org/id/metropolitan-district-council/wolverhampton","701656","Askews & Holts Library Services Limited","43.76","Books","130252638","17/05/2019","Local Economy","Global Budgets","R4309"
"Wolverhampton City Council","http://opendatacommunities.org/id/metropolitan-district-council/wolverhampton","701656","Askews & Holts Library Services Limited","61.03","Books","130252641","17/05/2019","Local Economy","Global Budgets","R4309"
"Wolverhampton City Council","http://opendatacommunities.org/id/metropolitan-district-council/wolverhampton","701656","Askews & Holts Library Services Limited","202.45","Books","130252499","17/05/2019","Local Economy","Global Budgets","R4309"
"Wolverhampton City Council","http://opendatacommunities.org/id/metropolitan-district-council/wolverhampton","701656","Askews & Holts Library Services Limited","64.35","Books","130251670","10/05/2019","Local Economy","Global Budgets","R4309"
"Wolverhampton City Council","http://opendatacommunities.org/id/metropolitan-district-council/wolverhampton","701656","Askews & Holts Library Services Limited","28.98","Books","130251673","10/05/2019","Local Economy","Global Budgets","R4309"
"Wolverhampton City Council","http://opendatacommunities.org/id/metropolitan-district-council/wolverhampton","701656","Askews & Holts Library Services Limited","56.53","Books","130251671","10/05/2019","Local Economy","Global Budgets","R4309"
"Wolverhampton City Council","http://opendatacommunities.org/id/metropolitan-district-council/wolverhampton","701656","Askews & Holts Library Services Limited","23.33","Books","130251674","10/05/2019","Local Economy","Global Budgets","R4309"
"Wolverhampton City Council","http://opendatacommunities.org/id/metropolitan-district-council/wolverhampton","701656","Askews & Holts Library Services Limited","21.44","Books","130251685","10/05/2019","Local Economy","Global Budgets","R4309"
"Wolverhampton City Council","http://opendatacommunities.org/id/metropolitan-district-council/wolverhampton","701656","Askews & Holts Library Services Limited","37.54","Books","130251689","10/05/2019","Local Economy","Global Budgets","R4309"
"Wolverhampton City Council","http://opendatacommunities.org/id/metropolitan-district-council/wolverhampton","701656","Askews & Holts Library Services Limited","13.04","Books","130251717","10/05/2019","Local Economy","Global Budgets","R4309"
"Wolverhampton City Council","http://opendatacommunities.org/id/metropolitan-district-council/wolverhampton","701656","Askews & Holts Library Services Limited","47.39","Books","130251707","10/05/2019","Local Economy","Global Budgets","R4309"
"Wolverhampton City Council","http://opendatacommunities.org/id/metropolitan-district-council/wolverhampton","701656","Askews & Holts Library Services Limited","33.90","Books","130251708","10/05/2019","Local Economy","Global Budgets","R4309"
"Wolverhampton City Council","http://opendatacommunities.org/id/metropolitan-district-council/wolverhampton","701656","Askews & Holts Library Services Limited","20.43","Books","130251854","10/05/2019","Local Economy","Global Budgets","R4309"
"Wolverhampton City Council","http://opendatacommunities.org/id/metropolitan-district-council/wolverhampton","701656","Askews & Holts Library Services Limited","24.64","Books","130251845","10/05/2019","Local Economy","Global Budgets","R4309"
"Wolverhampton City Council","http://opendatacommunities.org/id/metropolitan-district-council/wolverhampton","701656","Askews & Holts Library Services Limited","210.57","Books","130251720","10/05/2019","Local Economy","Global Budgets","R4309"
"Wolverhampton City Council","http://opendatacommunities.org/id/metropolitan-district-council/wolverhampton","701656","Askews & Holts Library Services Limited","31.15","Books","130251858","10/05/2019","Local Economy","Global Budgets","R4309"
"Wolverhampton City Council","http://opendatacommunities.org/id/metropolitan-district-council/wolverhampton","701656","Askews & Holts Library Services Limited","22.90","Books","130251711","10/05/2019","Local Economy","Global Budgets","R4309"
"Wolverhampton City Council","http://opendatacommunities.org/id/metropolitan-district-council/wolverhampton","701656","Askews & Holts Library Services Limited","27.82","Books","130251703","10/05/2019","Local Economy","Global Budgets","R4309"
"Wolverhampton City Council","http://opendatacommunities.org/id/metropolitan-district-council/wolverhampton","701656","Askews & Holts Library Services Limited","12.03","Books","130251844","10/05/2019","Local Economy","Global Budgets","R4309"
"Wolverhampton City Council","http://opendatacommunities.org/id/metropolitan-district-council/wolverhampton","701656","Askews & Holts Library Services Limited","34.48","Books","130251702","10/05/2019","Local Economy","Global Budgets","R4309"
"Wolverhampton City Council","http://opendatacommunities.org/id/metropolitan-district-council/wolverhampton","701656","Askews & Holts Library Services Limited","16.95","Books","130251847","10/05/2019","Local Economy","Global Budgets","R4309"
"Wolverhampton City Council","http://opendatacommunities.org/id/metropolitan-district-council/wolverhampton","701656","Askews & Holts Library Services Limited","58.70","Books","130251859","10/05/2019","Local Economy","Global Budgets","R4309"
"Wolverhampton City Council","http://opendatacommunities.org/id/metropolitan-district-council/wolverhampton","701656","Askews & Holts Library Services Limited","18.11","Books","130251682","10/05/2019","Local Economy","Global Budgets","R4309"
"Wolverhampton City Council","http://opendatacommunities.org/id/metropolitan-district-council/wolverhampton","701656","Askews & Holts Library Services Limited","21.17","Books","130251652","10/05/2019","Local Economy","Global Budgets","R4309"
"Wolverhampton City Council","http://opendatacommunities.org/id/metropolitan-district-council/wolverhampton","701656","Askews & Holts Library Services Limited","33.47","Books","130251663","10/05/2019","Local Economy","Global Budgets","R4309"
"Wolverhampton City Council","http://opendatacommunities.org/id/metropolitan-district-council/wolverhampton","701656","Askews & Holts Library Services Limited","29.99","Books","130251665","10/05/2019","Local Economy","Global Budgets","R4309"
"Wolverhampton City Council","http://opendatacommunities.org/id/metropolitan-district-council/wolverhampton","701656","Askews & Holts Library Services Limited","56.80","Books","130251666","10/05/2019","Local Economy","Global Budgets","R4309"
"Wolverhampton City Council","http://opendatacommunities.org/id/metropolitan-district-council/wolverhampton","701656","Askews & Holts Library Services Limited","58.27","Books","130251686","10/05/2019","Local Economy","Global Budgets","R4309"
"Wolverhampton City Council","http://opendatacommunities.org/id/metropolitan-district-council/wolverhampton","701656","Askews & Holts Library Services Limited","10.29","Books","130251699","10/05/2019","Local Economy","Global Budgets","R4309"
"Wolverhampton City Council","http://opendatacommunities.org/id/metropolitan-district-council/wolverhampton","701656","Askews & Holts Library Services Limited","16.37","Books","130251695","10/05/2019","Local Economy","Global Budgets","R4309"
"Wolverhampton City Council","http://opendatacommunities.org/id/metropolitan-district-council/wolverhampton","701656","Askews & Holts Library Services Limited","545.07","Books","130251698","10/05/2019","Local Economy","Global Budgets","R4309"
"Wolverhampton City Council","http://opendatacommunities.org/id/metropolitan-district-council/wolverhampton","701656","Askews & Holts Library Services Limited","301.47","Books","130251677","10/05/2019","Local Economy","Global Budgets","R4309"
"Wolverhampton City Council","http://opendatacommunities.org/id/metropolitan-district-council/wolverhampton","701656","Askews & Holts Library Services Limited","66.68","Books","130251684","10/05/2019","Local Economy","Global Budgets","R4309"
"Wolverhampton City Council","http://opendatacommunities.org/id/metropolitan-district-council/wolverhampton","701656","Askews & Holts Library Services Limited","39.70","Books","130251691","10/05/2019","Local Economy","Global Budgets","R4309"
"Wolverhampton City Council","http://opendatacommunities.org/id/metropolitan-district-council/wolverhampton","701656","Askews & Holts Library Services Limited","280.25","Books","130251709","10/05/2019","Local Economy","Global Budgets","R4309"
"Wolverhampton City Council","http://opendatacommunities.org/id/metropolitan-district-council/wolverhampton","701656","Askews & Holts Library Services Limited","41.16","Books","130251719","10/05/2019","Local Economy","Global Budgets","R4309"
"Wolverhampton City Council","http://opendatacommunities.org/id/metropolitan-district-council/wolverhampton","701656","Askews & Holts Library Services Limited","27.67","Books","130251715","10/05/2019","Local Economy","Global Budgets","R4309"
"Wolverhampton City Council","http://opendatacommunities.org/id/metropolitan-district-council/wolverhampton","701656","Askews & Holts Library Services Limited","62.19","Books","130251848","10/05/2019","Local Economy","Global Budgets","R4309"
"Wolverhampton City Council","http://opendatacommunities.org/id/metropolitan-district-council/wolverhampton","701656","Askews & Holts Library Services Limited","38.11","Books","130251855","10/05/2019","Local Economy","Global Budgets","R4309"
"Wolverhampton City Council","http://opendatacommunities.org/id/metropolitan-district-council/wolverhampton","701656","Askews & Holts Library Services Limited","23.76","Books","130251857","10/05/2019","Local Economy","Global Budgets","R4309"
"Wolverhampton City Council","http://opendatacommunities.org/id/metropolitan-district-council/wolverhampton","701656","Askews & Holts Library Services Limited","47.41","Books","130251851","10/05/2019","Local Economy","Global Budgets","R4309"
"Wolverhampton City Council","http://opendatacommunities.org/id/metropolitan-district-council/wolverhampton","701656","Askews & Holts Library Services Limited","11.30","Books","130251853","10/05/2019","Local Economy","Global Budgets","R4309"
"Wolverhampton City Council","http://opendatacommunities.org/id/metropolitan-district-council/wolverhampton","701656","Askews & Holts Library Services Limited","25.07","Books","130251690","10/05/2019","Local Economy","Global Budgets","R4309"
"Wolverhampton City Council","http://opendatacommunities.org/id/metropolitan-district-council/wolverhampton","701656","Askews & Holts Library Services Limited","29.41","Books","130251692","10/05/2019","Local Economy","Global Budgets","R4309"
"Wolverhampton City Council","http://opendatacommunities.org/id/metropolitan-district-council/wolverhampton","701656","Askews & Holts Library Services Limited","11.88","Books","130251693","10/05/2019","Local Economy","Global Budgets","R4309"
"Wolverhampton City Council","http://opendatacommunities.org/id/metropolitan-district-council/wolverhampton","701656","Askews & Holts Library Services Limited","37.68","Books","130251864","10/05/2019","Local Economy","Global Budgets","R4309"
"Wolverhampton City Council","http://opendatacommunities.org/id/metropolitan-district-council/wolverhampton","701656","Askews & Holts Library Services Limited","20.43","Books","130251657","10/05/2019","Local Economy","Global Budgets","R4309"
"Wolverhampton City Council","http://opendatacommunities.org/id/metropolitan-district-council/wolverhampton","701656","Askews & Holts Library Services Limited","22.32","Books","130251654","10/05/2019","Local Economy","Global Budgets","R4309"
"Wolverhampton City Council","http://opendatacommunities.org/id/metropolitan-district-council/wolverhampton","701656","Askews & Holts Library Services Limited","79.87","Books","130251863","10/05/2019","Local Economy","Global Budgets","R4309"
"Wolverhampton City Council","http://opendatacommunities.org/id/metropolitan-district-council/wolverhampton","701656","Askews & Holts Library Services Limited","37.10","Books","130251862","10/05/2019","Local Economy","Global Budgets","R4309"
"Wolverhampton City Council","http://opendatacommunities.org/id/metropolitan-district-council/wolverhampton","701656","Askews & Holts Library Services Limited","53.47","Books","130251861","10/05/2019","Local Economy","Global Budgets","R4309"
"Wolverhampton City Council","http://opendatacommunities.org/id/metropolitan-district-council/wolverhampton","701656","Askews & Holts Library Services Limited","16.37","Books","130251860","10/05/2019","Local Economy","Global Budgets","R4309"
"Wolverhampton City Council","http://opendatacommunities.org/id/metropolitan-district-council/wolverhampton","701656","Askews & Holts Library Services Limited","12.03","Books","130251655","10/05/2019","Local Economy","Global Budgets","R4309"
"Wolverhampton City Council","http://opendatacommunities.org/id/metropolitan-district-council/wolverhampton","701656","Askews & Holts Library Services Limited","16.95","Books","130251662","10/05/2019","Local Economy","Global Budgets","R4309"
"Wolverhampton City Council","http://opendatacommunities.org/id/metropolitan-district-council/wolverhampton","701656","Askews & Holts Library Services Limited","35.21","Books","130251664","10/05/2019","Local Economy","Global Budgets","R4309"
"Wolverhampton City Council","http://opendatacommunities.org/id/metropolitan-district-council/wolverhampton","701656","Askews & Holts Library Services Limited","60.44","Books","130251660","10/05/2019","Local Economy","Global Budgets","R4309"
"Wolverhampton City Council","http://opendatacommunities.org/id/metropolitan-district-council/wolverhampton","701656","Askews & Holts Library Services Limited","49.84","Books","130251035","03/05/2019","Local Economy","Global Budgets","R4309"
"Wolverhampton City Council","http://opendatacommunities.org/id/metropolitan-district-council/wolverhampton","701656","Askews & Holts Library Services Limited","99.84","Books","130251029","03/05/2019","Local Economy","Global Budgets","R4309"
"Wolverhampton City Council","http://opendatacommunities.org/id/metropolitan-district-council/wolverhampton","701656","Askews & Holts Library Services Limited","23.18","Books","130251034","03/05/2019","Local Economy","Global Budgets","R4309"
"Wolverhampton City Council","http://opendatacommunities.org/id/metropolitan-district-council/wolverhampton","701656","Askews & Holts Library Services Limited","165.77","Books","130251037","03/05/2019","Local Economy","Global Budgets","R4309"
"Wolverhampton City Council","http://opendatacommunities.org/id/metropolitan-district-council/wolverhampton","701656","Askews & Holts Library Services Limited","53.32","Books","130251033","03/05/2019","Local Economy","Global Budgets","R4309"
"Wolverhampton City Council","http://opendatacommunities.org/id/metropolitan-district-council/wolverhampton","701656","Askews & Holts Library Services Limited","430.79","Books","130251668","10/05/2019","Local Economy","Global Budgets","R4309"
"Wolverhampton City Council","http://opendatacommunities.org/id/metropolitan-district-council/wolverhampton","701656","Askews & Holts Library Services Limited","11.88","Books","130251667","10/05/2019","Local Economy","Global Budgets","R4309"
"Wolverhampton City Council","http://opendatacommunities.org/id/metropolitan-district-council/wolverhampton","701656","Askews & Holts Library Services Limited","26.23","Books","130251669","10/05/2019","Local Economy","Global Budgets","R4309"
"Wolverhampton City Council","http://opendatacommunities.org/id/metropolitan-district-council/wolverhampton","701656","Askews & Holts Library Services Limited","23.91","Books","130251694","10/05/2019","Local Economy","Global Budgets","R4309"
"Wolverhampton City Council","http://opendatacommunities.org/id/metropolitan-district-council/wolverhampton","701656","Askews & Holts Library Services Limited","19.43","Books","130251688","10/05/2019","Local Economy","Global Budgets","R4309"
"Wolverhampton City Council","http://opendatacommunities.org/id/metropolitan-district-council/wolverhampton","701656","Askews & Holts Library Services Limited","82.19","Books","130251676","10/05/2019","Local Economy","Global Budgets","R4309"
"Wolverhampton City Council","http://opendatacommunities.org/id/metropolitan-district-council/wolverhampton","701656","Askews & Holts Library Services Limited","64.35","Books","130251679","10/05/2019","Local Economy","Global Budgets","R4309"
"Wolverhampton City Council","http://opendatacommunities.org/id/metropolitan-district-council/wolverhampton","701656","Askews & Holts Library Services Limited","36.37","Books","130251696","10/05/2019","Local Economy","Global Budgets","R4309"
"Wolverhampton City Council","http://opendatacommunities.org/id/metropolitan-district-council/wolverhampton","701656","Askews & Holts Library Services Limited","47.25","Books","130251701","10/05/2019","Local Economy","Global Budgets","R4309"
"Wolverhampton City Council","http://opendatacommunities.org/id/metropolitan-district-council/wolverhampton","701656","Askews & Holts Library Services Limited","50.30","Books","130251713","10/05/2019","Local Economy","Global Budgets","R4309"
"Wolverhampton City Council","http://opendatacommunities.org/id/metropolitan-district-council/wolverhampton","701656","Askews & Holts Library Services Limited","52.74","Books","130251705","10/05/2019","Local Economy","Global Budgets","R4309"
"Wolverhampton City Council","http://opendatacommunities.org/id/metropolitan-district-council/wolverhampton","701656","Askews & Holts Library Services Limited","3,100.00","Books","130253156","29/05/2019","Local Economy","Global Budgets","R4309"
"Wolverhampton City Council","http://opendatacommunities.org/id/metropolitan-district-council/wolverhampton","701656","Askews & Holts Library Services Limited","72.04","Books","130251650","31/05/2019","Local Economy","Global Budgets","R4309"
"Wolverhampton City Council","http://opendatacommunities.org/id/metropolitan-district-council/wolverhampton","701656","Askews & Holts Library Services Limited","5.65","Books","130252508","31/05/2019","Local Economy","Global Budgets","R4309"
"Wolverhampton City Council","http://opendatacommunities.org/id/metropolitan-district-council/wolverhampton","701656","Askews & Holts Library Services Limited","6.23","Books","130251661","31/05/2019","Local Economy","Global Budgets","R4309"
"Wolverhampton City Council","http://opendatacommunities.org/id/metropolitan-district-council/wolverhampton","701656","Askews & Holts Library Services Limited","5.65","Books","130251658","31/05/2019","Local Economy","Global Budgets","R4309"
"Wolverhampton City Council","http://opendatacommunities.org/id/metropolitan-district-council/wolverhampton","701674","Assoc Financial Assessment Officers","200.00","Subscriptions","130252510","08/05/2019","Community Financial Support","Financial Assessments","R4701"
"Wolverhampton City Council","http://opendatacommunities.org/id/metropolitan-district-council/wolverhampton","701680","Associated  Radio Taxi�s","570.00","Client Transport","130253791","15/05/2019","Special Educational Needs","Secondary- Transport","R3042"
"Wolverhampton City Council","http://opendatacommunities.org/id/metropolitan-district-council/wolverhampton","701680","Associated  Radio Taxi�s","645.48","Client Transport","130253792","15/05/2019","Special Educational Needs","Special - Transport","R3042"
"Wolverhampton City Council","http://opendatacommunities.org/id/metropolitan-district-council/wolverhampton","701680","Associated  Radio Taxi�s","818.28","Client Transport","130253789","15/05/2019","Special Educational Needs","Special - Transport","R3042"
"Wolverhampton City Council","http://opendatacommunities.org/id/metropolitan-district-council/wolverhampton","701680","Associated  Radio Taxi�s","743.52","Client Transport","130253787","15/05/2019","Special Educational Needs","Secondary- Transport","R3042"
"Wolverhampton City Council","http://opendatacommunities.org/id/metropolitan-district-council/wolverhampton","701680","Associated  Radio Taxi�s","663.12","Client Transport","130253790","15/05/2019","Special Educational Needs","Secondary- Transport","R3042"
"Wolverhampton City Council","http://opendatacommunities.org/id/metropolitan-district-council/wolverhampton","701680","Associated  Radio Taxi�s","803.64","Client Transport","130253788","15/05/2019","Special Educational Needs","Primary - Transport","R3042"
"Wolverhampton City Council","http://opendatacommunities.org/id/metropolitan-district-council/wolverhampton","701681","Association For Science Education","140.00","Subscriptions","130251865","15/05/2019","School Improvement","School Improvement","R4701"
"Wolverhampton City Council","http://opendatacommunities.org/id/metropolitan-district-council/wolverhampton","701707","Aurora Graphics & Displays Limited","270.00","Printing","130253919","22/05/2019","ICTS","Document Centre - General","R4300"
"Wolverhampton City Council","http://opendatacommunities.org/id/metropolitan-district-council/wolverhampton","701707","Aurora Graphics & Displays Limited","180.00","Printing","130252321","01/05/2019","ICTS","Document Centre - General","R4300"
"Wolverhampton City Council","http://opendatacommunities.org/id/metropolitan-district-council/wolverhampton","701784","Bains Supersave Limited","46.30","Books","130254058","17/05/2019","Local Economy","Ashmore Park Library","R4309"
"Wolverhampton City Council","http://opendatacommunities.org/id/metropolitan-district-council/wolverhampton","701787","Baker Hall Limited","1,855.00","Services - Consultants","130253171","29/05/2019","Planning","Building Consultancy","R4404"
"Wolverhampton City Council","http://opendatacommunities.org/id/metropolitan-district-council/wolverhampton","701797","Barber Of Sheffield Limited","142.50","Equipment - Purchase","130251349","08/05/2019","Bereavement Services","Coroners","R4000"
"Wolverhampton City Council","http://opendatacommunities.org/id/metropolitan-district-council/wolverhampton","701797","Barber Of Sheffield Limited","8.00","Equipment - Purchase","130251349","08/05/2019","Bereavement Services","Coroners","R4000"
"Wolverhampton City Council","http://opendatacommunities.org/id/metropolitan-district-council/wolverhampton","701797","Barber Of Sheffield Limited","59.50","Equipment - Purchase","130251349","08/05/2019","Bereavement Services","Coroners","R4000"
"Wolverhampton City Council","http://opendatacommunities.org/id/metropolitan-district-council/wolverhampton","701797","Barber Of Sheffield Limited","35.70","Equipment - Purchase","130250880","08/05/2019","Bereavement Services","Coroners","R4000"
"Wolverhampton City Council","http://opendatacommunities.org/id/metropolitan-district-council/wolverhampton","701797","Barber Of Sheffield Limited","12.00","Equipment - Purchase","130250880","08/05/2019","Bereavement Services","Coroners","R4000"
"Wolverhampton City Council","http://opendatacommunities.org/id/metropolitan-district-council/wolverhampton","701797","Barber Of Sheffield Limited","19.75","Equipment - Purchase","130250880","08/05/2019","Bereavement Services","Coroners","R4000"
"Wolverhampton City Council","http://opendatacommunities.org/id/metropolitan-district-council/wolverhampton","701797","Barber Of Sheffield Limited","34.99","Equipment - Purchase","130250880","08/05/2019","Bereavement Services","Coroners","R4000"
"Wolverhampton City Council","http://opendatacommunities.org/id/metropolitan-district-council/wolverhampton","701797","Barber Of Sheffield Limited","229.50","Equipment - Purchase","130250880","08/05/2019","Bereavement Services","Coroners","R4000"
"Wolverhampton City Council","http://opendatacommunities.org/id/metropolitan-district-council/wolverhampton","701797","Barber Of Sheffield Limited","83.70","Equipment - Purchase","130250880","08/05/2019","Bereavement Services","Coroners","R4000"
"Wolverhampton City Council","http://opendatacommunities.org/id/metropolitan-district-council/wolverhampton","701797","Barber Of Sheffield Limited","16.60","Equipment - Purchase","130250880","08/05/2019","Bereavement Services","Coroners","R4000"
"Wolverhampton City Council","http://opendatacommunities.org/id/metropolitan-district-council/wolverhampton","701797","Barber Of Sheffield Limited","35.40","Equipment - Purchase","130250880","08/05/2019","Bereavement Services","Coroners","R4000"
"Wolverhampton City Council","http://opendatacommunities.org/id/metropolitan-district-council/wolverhampton","701797","Barber Of Sheffield Limited","59.50","Equipment - Purchase","130250880","08/05/2019","Bereavement Services","Coroners","R4000"
"Wolverhampton City Council","http://opendatacommunities.org/id/metropolitan-district-council/wolverhampton","701797","Barber Of Sheffield Limited","-550.09","Equipment - Purchase","130250879","08/05/2019","Bereavement Services","Coroners","R4000"
"Wolverhampton City Council","http://opendatacommunities.org/id/metropolitan-district-council/wolverhampton","701797","Barber Of Sheffield Limited","22.95","Equipment - Purchase","130251866","15/05/2019","Bereavement Services","Coroners","R4000"
"Wolverhampton City Council","http://opendatacommunities.org/id/metropolitan-district-council/wolverhampton","701817","Base 25","15.00","Grant Payments","130252645","03/05/2019","Specialist Support","Intensive Family Support & Family Group Conferencing Team","R4700"
"Wolverhampton City Council","http://opendatacommunities.org/id/metropolitan-district-council/wolverhampton","701817","Base 25","15.00","Services - Professional Fees","130255146","31/05/2019","Strengthening Families","CP Area 7 - Low Hill","R4400"
"Wolverhampton City Council","http://opendatacommunities.org/id/metropolitan-district-council/wolverhampton","701817","Base 25","210.00","Section 17","130252407","03/05/2019","Strengthening Families","CP Area 4- Bingley","R6403"
"Wolverhampton City Council","http://opendatacommunities.org/id/metropolitan-district-council/wolverhampton","701817","Base 25","15.00","Grant Payments","130252644","03/05/2019","Specialist Support","Intensive Family Support & Family Group Conferencing Team","R4700"
"Wolverhampton City Council","http://opendatacommunities.org/id/metropolitan-district-council/wolverhampton","701817","Base 25","2,260.00","Grant Payments","130251867","15/05/2019","Community Safety","Early Intervention Youth Fund","R4700"
"Wolverhampton City Council","http://opendatacommunities.org/id/metropolitan-district-council/wolverhampton","701817","Base 25","1,209.00","Client Allowances","190588639","01/05/2019","Children & Young People In Care","Looked After Team 1","R6301"
"Wolverhampton City Council","http://opendatacommunities.org/id/metropolitan-district-council/wolverhampton","701832","Bbp.Security Services & Training Limited","968.00","Services - Security","130253032","10/05/2019","Environmental Maintenance","Parks / Open Spaces - Repairs & Maintenance","R4405"
"Wolverhampton City Council","http://opendatacommunities.org/id/metropolitan-district-council/wolverhampton","701832","Bbp.Security Services & Training Limited","165.00","Services - Security","130254696","29/05/2019","Maintenance Programme","Centralised R&M","R4405"
"Wolverhampton City Council","http://opendatacommunities.org/id/metropolitan-district-council/wolverhampton","701832","Bbp.Security Services & Training Limited","3,780.00","Services - Security","130254879","29/05/2019","Facilities Management","Parkfields Office Accomodation","R4405"
"Wolverhampton City Council","http://opendatacommunities.org/id/metropolitan-district-council/wolverhampton","701832","Bbp.Security Services & Training Limited","459.38","Services - Security","130254882","29/05/2019","Facilities Management","Civic Centre","R4405"
"Wolverhampton City Council","http://opendatacommunities.org/id/metropolitan-district-council/wolverhampton","701832","Bbp.Security Services & Training Limited","2,100.00","Services - Security","130254881","29/05/2019","Facilities Management","i10 Facilities Management","R4405"
"Wolverhampton City Council","http://opendatacommunities.org/id/metropolitan-district-council/wolverhampton","701832","Bbp.Security Services & Training Limited","176.00","Services - Security","130254697","29/05/2019","Maintenance Programme","Centralised R&M","R4405"
"Wolverhampton City Council","http://opendatacommunities.org/id/metropolitan-district-council/wolverhampton","701832","Bbp.Security Services & Training Limited","242.00","External Professional Fees","130253031","17/05/2019","-","City Learning Quarter","C6002"
"Wolverhampton City Council","http://opendatacommunities.org/id/metropolitan-district-council/wolverhampton","701832","Bbp.Security Services & Training Limited","5,003.25","Services - Security","130252240","01/05/2019","Adult Education","Business Support Services","R4405"
"Wolverhampton City Council","http://opendatacommunities.org/id/metropolitan-district-council/wolverhampton","701832","Bbp.Security Services & Training Limited","258.75","Services - Security","130254339","22/05/2019","Markets","Wolverhampton Indoor and Open Market","R4405"
"Wolverhampton City Council","http://opendatacommunities.org/id/metropolitan-district-council/wolverhampton","701832","Bbp.Security Services & Training Limited","2,843.38","Services - Security","130254338","22/05/2019","Markets","Bilston Market and Licensed Operations","R4405"
"Wolverhampton City Council","http://opendatacommunities.org/id/metropolitan-district-council/wolverhampton","701832","Bbp.Security Services & Training Limited","3,092.25","Services - Security","130254336","22/05/2019","Adult Education","Business Support Services","R4405"
"Wolverhampton City Council","http://opendatacommunities.org/id/metropolitan-district-council/wolverhampton","701832","Bbp.Security Services & Training Limited","6,348.75","Services - Security","130254337","22/05/2019","Markets","Wolverhampton Indoor and Open Market","R4405"
"Wolverhampton City Council","http://opendatacommunities.org/id/metropolitan-district-council/wolverhampton","701832","Bbp.Security Services & Training Limited","2,562.00","Services - Security","130254880","29/05/2019","Facilities Management","Parkfields Office Accomodation","R4405"
"Wolverhampton City Council","http://opendatacommunities.org/id/metropolitan-district-council/wolverhampton","701832","Bbp.Security Services & Training Limited","352.00","Services - Security","130251868","01/05/2019","Facilities Management","Management of Vacant Properties","R4405"
"Wolverhampton City Council","http://opendatacommunities.org/id/metropolitan-district-council/wolverhampton","701832","Bbp.Security Services & Training Limited","2,155.50","Services - Security","130254542","29/05/2019","Facilities Management","Management of Vacant Properties","R4405"
"Wolverhampton City Council","http://opendatacommunities.org/id/metropolitan-district-council/wolverhampton","701832","Bbp.Security Services & Training Limited","37.38","External Professional Fees","130249829","17/05/2019","-","City Learning Quarter","C6002"
"Wolverhampton City Council","http://opendatacommunities.org/id/metropolitan-district-council/wolverhampton","701867","Believe To Achieve Limited","192.00","Services - Supplies and Services to service users","130254543","24/05/2019","Strengthening Families","EI Area 1- Eastfield","R4408"
"Wolverhampton City Council","http://opendatacommunities.org/id/metropolitan-district-council/wolverhampton","701885","Berrymans Lace Mawer","1,219.00","Insurance - General","130251512","22/05/2019","Audit Services","Legal Liability","R4962"
"Wolverhampton City Council","http://opendatacommunities.org/id/metropolitan-district-council/wolverhampton","701885","Berrymans Lace Mawer","1,000.00","Insurance - General","130252646","03/05/2019","Audit Services","Legal Liability","R4962"
"Wolverhampton City Council","http://opendatacommunities.org/id/metropolitan-district-council/wolverhampton","701920","Biffa Waste Services Limited","12,148.42","TPP - Waste Disposal","130252409","03/05/2019","Waste and Recycling Service","Waste Collection and Recycling Service - General","R5003"
"Wolverhampton City Council","http://opendatacommunities.org/id/metropolitan-district-council/wolverhampton","701920","Biffa Waste Services Limited","8,281.94","TPP - Waste Disposal","130253173","22/05/2019","Waste and Recycling Service","Waste Collection and Recycling Service - General","R5003"
"Wolverhampton City Council","http://opendatacommunities.org/id/metropolitan-district-council/wolverhampton","701920","Biffa Waste Services Limited","6,540.01","TPP - Waste Disposal","130253172","17/05/2019","Waste and Recycling Service","Waste Collection and Recycling Service - General","R5003"
"Wolverhampton City Council","http://opendatacommunities.org/id/metropolitan-district-council/wolverhampton","701920","Biffa Waste Services Limited","9,835.50","TPP - Waste Disposal","130253675","17/05/2019","Waste and Recycling Service","Waste Collection and Recycling Service - General","R5003"
"Wolverhampton City Council","http://opendatacommunities.org/id/metropolitan-district-council/wolverhampton","701920","Biffa Waste Services Limited","7,246.12","TPP - Waste Disposal","130252408","17/05/2019","Waste and Recycling Service","Waste Collection and Recycling Service - General","R5003"
"Wolverhampton City Council","http://opendatacommunities.org/id/metropolitan-district-council/wolverhampton","701920","Biffa Waste Services Limited","1,019.05","TPP - Waste Disposal","130251513","08/05/2019","Waste and Recycling Service","Waste Collection and Recycling Service - General","R5003"
"Wolverhampton City Council","http://opendatacommunities.org/id/metropolitan-district-council/wolverhampton","701930","Bilston Resource Centre","11,406.15","Training Expenses","130250610","01/05/2019","Local Economy","Universal Credit","R1650"
"Wolverhampton City Council","http://opendatacommunities.org/id/metropolitan-district-council/wolverhampton","701930","Bilston Resource Centre","3,378.00","Services - Professional Fees","130251046","10/05/2019","Skills","ESOL Pathways - CMF","R4400"
"Wolverhampton City Council","http://opendatacommunities.org/id/metropolitan-district-council/wolverhampton","701944","Birmingham CC - General Fund","14,759.33","Comms - Postage","130250467","01/05/2019","ICTS","Document Centre - General","R4503"
"Wolverhampton City Council","http://opendatacommunities.org/id/metropolitan-district-council/wolverhampton","701944","Birmingham CC - General Fund","1,178.76","Comms - Postage","130250466","22/05/2019","Public Service Reform","Electoral Registration","R4503"
"Wolverhampton City Council","http://opendatacommunities.org/id/metropolitan-district-council/wolverhampton","701944","Birmingham CC - General Fund","3,415.30","TPP - Payments to Local Authorities","130254465","24/05/2019","Special Educational Needs","SEN Education OOC","R5100"
"Wolverhampton City Council","http://opendatacommunities.org/id/metropolitan-district-council/wolverhampton","701944","Birmingham CC - General Fund","5,779.73","TPP - Payments to Local Authorities","130254466","24/05/2019","Special Educational Needs","SEN Education OOC","R5100"
"Wolverhampton City Council","http://opendatacommunities.org/id/metropolitan-district-council/wolverhampton","701963","Black Country Consortium Limited","103,355.00","Subscriptions","130254698","29/05/2019","Enterprise","Economic Development","R4701"
"Wolverhampton City Council","http://opendatacommunities.org/id/metropolitan-district-council/wolverhampton","701983","Blakenhall Neighbourhood Nursery","21,114.00","TPP - Private Nursery Education Funding","190596458","22/05/2019","Early Years","Early Years Universal Entitlement for 3 and 4 Year Olds","R5035"
"Wolverhampton City Council","http://opendatacommunities.org/id/metropolitan-district-council/wolverhampton","701983","Blakenhall Neighbourhood Nursery","5,093.28","TPP - Private Nursery Education Funding","190596450","22/05/2019","Early Years","Early Years Entitlement Funding for Disadvantaged 2 Year Olds","R5035"
"Wolverhampton City Council","http://opendatacommunities.org/id/metropolitan-district-council/wolverhampton","701996","Blue Group Interntl Limited T/A Bluecare","1,110.00","Agency Staff","130252130","22/05/2019","Strengthening Families","CP Area 8 - Children�s Village","R1100"
"Wolverhampton City Council","http://opendatacommunities.org/id/metropolitan-district-council/wolverhampton","701996","Blue Group Interntl Limited T/A Bluecare","20.25","Agency Staff","130247707","31/05/2019","Strengthening Families","CP Area 8 - Children�s Village","R1100"
"Wolverhampton City Council","http://opendatacommunities.org/id/metropolitan-district-council/wolverhampton","701996","Blue Group Interntl Limited T/A Bluecare","8.55","Agency Staff","130248285","31/05/2019","Strengthening Families","CP Area 8 - Children�s Village","R1100"
"Wolverhampton City Council","http://opendatacommunities.org/id/metropolitan-district-council/wolverhampton","701996","Blue Group Interntl Limited T/A Bluecare","45.00","Agency Staff","130253034","31/05/2019","Strengthening Families","CP Area 8 - Children�s Village","R1100"
"Wolverhampton City Council","http://opendatacommunities.org/id/metropolitan-district-council/wolverhampton","701996","Blue Group Interntl Limited T/A Bluecare","2.70","Agency Staff","130252511","24/05/2019","Strengthening Families","CP Area 8 - Children�s Village","R1100"
"Wolverhampton City Council","http://opendatacommunities.org/id/metropolitan-district-council/wolverhampton","701996","Blue Group Interntl Limited T/A Bluecare","1,091.50","Agency Staff","130252512","24/05/2019","Strengthening Families","CP Area 8 - Children�s Village","R1100"
"Wolverhampton City Council","http://opendatacommunities.org/id/metropolitan-district-council/wolverhampton","701996","Blue Group Interntl Limited T/A Bluecare","7.65","Agency Staff","130250882","03/05/2019","Strengthening Families","CP Area 8 - Children�s Village","R1100"
"Wolverhampton City Council","http://opendatacommunities.org/id/metropolitan-district-council/wolverhampton","701996","Blue Group Interntl Limited T/A Bluecare","1,369.00","Agency Staff","130250883","03/05/2019","Strengthening Families","CP Area 8 - Children�s Village","R1100"
"Wolverhampton City Council","http://opendatacommunities.org/id/metropolitan-district-council/wolverhampton","701996","Blue Group Interntl Limited T/A Bluecare","18.45","Agency Staff","130251722","10/05/2019","Strengthening Families","CP Area 8 - Children�s Village","R1100"
"Wolverhampton City Council","http://opendatacommunities.org/id/metropolitan-district-council/wolverhampton","701996","Blue Group Interntl Limited T/A Bluecare","1,369.00","Agency Staff","130253033","29/05/2019","Strengthening Families","CP Area 8 - Children�s Village","R1100"
"Wolverhampton City Council","http://opendatacommunities.org/id/metropolitan-district-council/wolverhampton","701996","Blue Group Interntl Limited T/A Bluecare","1,369.00","Agency Staff","130251721","10/05/2019","Strengthening Families","CP Area 8 - Children�s Village","R1100"
"Wolverhampton City Council","http://opendatacommunities.org/id/metropolitan-district-council/wolverhampton","701996","Blue Group Interntl Limited T/A Bluecare","41.40","Agency Staff","130252322","22/05/2019","Strengthening Families","CP Area 8 - Children�s Village","R1100"
"Wolverhampton City Council","http://opendatacommunities.org/id/metropolitan-district-council/wolverhampton","701999","Blue Mountain Foods Limited","315.00","Provisions (Resale)","130251448","08/05/2019","Catering","Meals on Wheels","R4102"
"Wolverhampton City Council","http://opendatacommunities.org/id/metropolitan-district-council/wolverhampton","702015","Boc Limited","95.25","Rent","130252831","24/05/2019","Visitor Economy","The Little Civic","R2200"
"Wolverhampton City Council","http://opendatacommunities.org/id/metropolitan-district-council/wolverhampton","702041","Boulton Travel Limited","2,730.00","Client Transport","130252388","01/05/2019","Special Educational Needs","Special - Transport","R3042"
"Wolverhampton City Council","http://opendatacommunities.org/id/metropolitan-district-council/wolverhampton","702041","Boulton Travel Limited","1,890.00","Client Transport","130252385","01/05/2019","Special Educational Needs","Special - Transport","R3042"
"Wolverhampton City Council","http://opendatacommunities.org/id/metropolitan-district-council/wolverhampton","702041","Boulton Travel Limited","1,890.00","Client Transport","130252383","01/05/2019","Special Educational Needs","Special - Transport","R3042"
"Wolverhampton City Council","http://opendatacommunities.org/id/metropolitan-district-council/wolverhampton","702041","Boulton Travel Limited","1,995.00","Client Transport","130252387","01/05/2019","Special Educational Needs","Special - Transport","R3042"
"Wolverhampton City Council","http://opendatacommunities.org/id/metropolitan-district-council/wolverhampton","702041","Boulton Travel Limited","950.00","Client Transport","130252390","01/05/2019","Special Educational Needs","Special - Transport","R3042"
"Wolverhampton City Council","http://opendatacommunities.org/id/metropolitan-district-council/wolverhampton","702041","Boulton Travel Limited","1,890.00","Client Transport","130252381","01/05/2019","Special Educational Needs","Special - Transport","R3042"
"Wolverhampton City Council","http://opendatacommunities.org/id/metropolitan-district-council/wolverhampton","702041","Boulton Travel Limited","1,045.00","Client Transport","130252389","01/05/2019","Special Educational Needs","Special - Transport","R3042"
"Wolverhampton City Council","http://opendatacommunities.org/id/metropolitan-district-council/wolverhampton","702041","Boulton Travel Limited","1,950.00","Client Transport","130252386","01/05/2019","Special Educational Needs","Special - Transport","R3042"
"Wolverhampton City Council","http://opendatacommunities.org/id/metropolitan-district-council/wolverhampton","702041","Boulton Travel Limited","1,890.00","Client Transport","130252384","01/05/2019","Special Educational Needs","Special - Transport","R3042"
"Wolverhampton City Council","http://opendatacommunities.org/id/metropolitan-district-council/wolverhampton","702041","Boulton Travel Limited","1,080.00","Client Transport","130252833","29/05/2019","Special Educational Needs","Special - Transport","R3042"
"Wolverhampton City Council","http://opendatacommunities.org/id/metropolitan-district-council/wolverhampton","702041","Boulton Travel Limited","1,130.00","Client Transport","130252834","29/05/2019","Special Educational Needs","Special - Transport","R3042"
"Wolverhampton City Council","http://opendatacommunities.org/id/metropolitan-district-council/wolverhampton","702041","Boulton Travel Limited","1,080.00","Client Transport","130252832","29/05/2019","Special Educational Needs","Special - Transport","R3042"
"Wolverhampton City Council","http://opendatacommunities.org/id/metropolitan-district-council/wolverhampton","702041","Boulton Travel Limited","1,140.00","Client Transport","130252650","29/05/2019","Special Educational Needs","Special - Transport","R3042"
"Wolverhampton City Council","http://opendatacommunities.org/id/metropolitan-district-council/wolverhampton","702041","Boulton Travel Limited","1,080.00","Client Transport","130252648","29/05/2019","Special Educational Needs","Special - Transport","R3042"
"Wolverhampton City Council","http://opendatacommunities.org/id/metropolitan-district-council/wolverhampton","702041","Boulton Travel Limited","1,130.00","Client Transport","130252649","29/05/2019","Special Educational Needs","Special - Transport","R3042"
"Wolverhampton City Council","http://opendatacommunities.org/id/metropolitan-district-council/wolverhampton","702041","Boulton Travel Limited","95.00","Client Transport","130252647","29/05/2019","Special Educational Needs","Special - Transport","R3042"
"Wolverhampton City Council","http://opendatacommunities.org/id/metropolitan-district-council/wolverhampton","702041","Boulton Travel Limited","1,560.00","Client Transport","130252652","29/05/2019","Special Educational Needs","Special - Transport","R3042"
"Wolverhampton City Council","http://opendatacommunities.org/id/metropolitan-district-council/wolverhampton","702041","Boulton Travel Limited","950.00","Client Transport","130252651","29/05/2019","Special Educational Needs","Special - Transport","R3042"
"Wolverhampton City Council","http://opendatacommunities.org/id/metropolitan-district-council/wolverhampton","702046","Bourne Leisure Limited","275.17","TPP - Short Breaks","130250884","03/05/2019","Carer Support","Carers Support","R5500"
"Wolverhampton City Council","http://opendatacommunities.org/id/metropolitan-district-council/wolverhampton","702046","Bourne Leisure Limited","70.00","TPP - Short Breaks","130250886","03/05/2019","Carer Support","Carers Support","R5500"
"Wolverhampton City Council","http://opendatacommunities.org/id/metropolitan-district-council/wolverhampton","702046","Bourne Leisure Limited","29.97","TPP - Short Breaks","130250885","03/05/2019","Carer Support","Carers Support","R5500"
"Wolverhampton City Council","http://opendatacommunities.org/id/metropolitan-district-council/wolverhampton","702046","Bourne Leisure Limited","-15.00","TPP - Short Breaks","130251048","22/05/2019","Carer Support","Carers Support","R5500"
"Wolverhampton City Council","http://opendatacommunities.org/id/metropolitan-district-council/wolverhampton","702046","Bourne Leisure Limited","65.50","Client Transport","130243762","22/05/2019","Strengthening Families","EI Area 2- Bilston/Rocket pool","R3042"
"Wolverhampton City Council","http://opendatacommunities.org/id/metropolitan-district-council/wolverhampton","702050","Bowmonk Limited","5.17","Equipment - Purchase","190578414","15/05/2019","Fleet Services","Fleet Management","R4000"
"Wolverhampton City Council","http://opendatacommunities.org/id/metropolitan-district-council/wolverhampton","702050","Bowmonk Limited","69.00","Equipment - Purchase","190578414","15/05/2019","Fleet Services","Fleet Management","R4000"
"Wolverhampton City Council","http://opendatacommunities.org/id/metropolitan-district-council/wolverhampton","702070","Braitch Solicitors","117.60","Services - Professional Fees","130252410","03/05/2019","Children & Young People In Care","Looked After Team 1","R4400"
"Wolverhampton City Council","http://opendatacommunities.org/id/metropolitan-district-council/wolverhampton","702070","Braitch Solicitors","1,020.00","TPP - Placement Foster Care Inhouse","190591316","08/05/2019","Children & Young People In Care","LAC Transitions Team","R5601"
"Wolverhampton City Council","http://opendatacommunities.org/id/metropolitan-district-council/wolverhampton","702071","Brakes/Brakefresh","87.16","Provisions (Resale)","130254546","24/05/2019","Visitor Economy","Art Gallery Tea Room","R4102"
"Wolverhampton City Council","http://opendatacommunities.org/id/metropolitan-district-council/wolverhampton","702071","Brakes/Brakefresh","302.98","Provisions (Resale)","130253795","22/05/2019","Visitor Economy","Bantock - Tea Rooms","R4102"
"Wolverhampton City Council","http://opendatacommunities.org/id/metropolitan-district-council/wolverhampton","702071","Brakes/Brakefresh","100.86","Provisions (Resale)","130253796","22/05/2019","Visitor Economy","Bantock - Tea Rooms","R4102"
"Wolverhampton City Council","http://opendatacommunities.org/id/metropolitan-district-council/wolverhampton","702071","Brakes/Brakefresh","409.46","Provisions (Resale)","130253035","22/05/2019","Catering","Civic Centre Catering","R4102"
"Wolverhampton City Council","http://opendatacommunities.org/id/metropolitan-district-council/wolverhampton","702071","Brakes/Brakefresh","287.25","Provisions (Resale)","130251519","03/05/2019","Catering","Civic Centre Catering","R4102"
"Wolverhampton City Council","http://opendatacommunities.org/id/metropolitan-district-council/wolverhampton","702071","Brakes/Brakefresh","88.86","Provisions (Resale)","130252028","15/05/2019","Visitor Economy","Art Gallery Tea Room","R4102"
"Wolverhampton City Council","http://opendatacommunities.org/id/metropolitan-district-council/wolverhampton","702071","Brakes/Brakefresh","354.67","Provisions (Resale)","130247004","08/05/2019","Catering","Civic Centre Catering","R4102"
"Wolverhampton City Council","http://opendatacommunities.org/id/metropolitan-district-council/wolverhampton","702071","Brakes/Brakefresh","264.44","Provisions (Resale)","130251521","08/05/2019","Catering","Civic Centre Catering","R4102"
"Wolverhampton City Council","http://opendatacommunities.org/id/metropolitan-district-council/wolverhampton","702071","Brakes/Brakefresh","-44.93","Provisions (Resale)","130252956","15/05/2019","Catering","Civic Centre Catering","R4102"
"Wolverhampton City Council","http://opendatacommunities.org/id/metropolitan-district-council/wolverhampton","702071","Brakes/Brakefresh","840.55","Provisions (Resale)","130248287","01/05/2019","Catering","Civic Centre Catering","R4102"
"Wolverhampton City Council","http://opendatacommunities.org/id/metropolitan-district-council/wolverhampton","702071","Brakes/Brakefresh","90.53","Provisions (Resale)","130251520","01/05/2019","Visitor Economy","Art Gallery Tea Room","R4102"
"Wolverhampton City Council","http://opendatacommunities.org/id/metropolitan-district-council/wolverhampton","702071","Brakes/Brakefresh","-8.37","Provisions (Resale)","130252957","15/05/2019","Catering","Civic Centre Catering","R4102"
"Wolverhampton City Council","http://opendatacommunities.org/id/metropolitan-district-council/wolverhampton","702071","Brakes/Brakefresh","1,118.03","Provisions (Resale)","130253530","29/05/2019","Catering","Civic Centre Catering","R4102"
"Wolverhampton City Council","http://opendatacommunities.org/id/metropolitan-district-council/wolverhampton","702071","Brakes/Brakefresh","194.88","Provisions (Resale)","130254547","29/05/2019","Visitor Economy","Bantock - Tea Rooms","R4102"
"Wolverhampton City Council","http://opendatacommunities.org/id/metropolitan-district-council/wolverhampton","702071","Brakes/Brakefresh","-14.03","Provisions (Resale)","130252958","15/05/2019","Catering","Civic Centre Catering","R4102"
"Wolverhampton City Council","http://opendatacommunities.org/id/metropolitan-district-council/wolverhampton","702071","Brakes/Brakefresh","8.37","Provisions (Resale)","130253036","15/05/2019","Catering","Civic Centre Catering","R4102"
"Wolverhampton City Council","http://opendatacommunities.org/id/metropolitan-district-council/wolverhampton","702071","Brakes/Brakefresh","53.32","Provisions (Resale)","130252027","15/05/2019","Visitor Economy","Art Gallery Tea Room","R4102"
"Wolverhampton City Council","http://opendatacommunities.org/id/metropolitan-district-council/wolverhampton","702071","Brakes/Brakefresh","260.30","Provisions (Resale)","130251514","01/05/2019","Catering","Civic Centre Catering","R4102"
"Wolverhampton City Council","http://opendatacommunities.org/id/metropolitan-district-council/wolverhampton","702071","Brakes/Brakefresh","414.12","Provisions (Resale)","130251517","01/05/2019","Catering","Civic Centre Catering","R4102"
"Wolverhampton City Council","http://opendatacommunities.org/id/metropolitan-district-council/wolverhampton","702071","Brakes/Brakefresh","-14.64","Provisions (Resale)","130252026","01/05/2019","Catering","Civic Centre Catering","R4102"
"Wolverhampton City Council","http://opendatacommunities.org/id/metropolitan-district-council/wolverhampton","702093","Briggs Equiptment UK Limited","413.33","Hire of Vehicles","130252029","15/05/2019","Markets","Wholesale Market Facilities Management","R3200"
"Wolverhampton City Council","http://opendatacommunities.org/id/metropolitan-district-council/wolverhampton","702104","Bristow & Sutor","-75.00","Bailiff Action","130253412","10/05/2019","Revenues & Benefits","Revenues","R9382"
"Wolverhampton City Council","http://opendatacommunities.org/id/metropolitan-district-council/wolverhampton","702109","British Dyslexia Association","150.00","Training Expenses","130251522","10/05/2019","Public Service Reform","Centralised Training","R1650"
"Wolverhampton City Council","http://opendatacommunities.org/id/metropolitan-district-council/wolverhampton","702126","BT (Phone Bills)","1,043.00","Equipment - Hire","130254059","17/05/2019","Operation & Maintenance of Existing Network","UTC Wolverhampton","R4001"
"Wolverhampton City Council","http://opendatacommunities.org/id/metropolitan-district-council/wolverhampton","702126","BT (Phone Bills)","1,213.96","Equipment - Hire","130253038","15/05/2019","Operation & Maintenance of Existing Network","UTC Wolverhampton","R4001"
"Wolverhampton City Council","http://opendatacommunities.org/id/metropolitan-district-council/wolverhampton","702126","BT (Phone Bills)","40.00","Comms - Telephone Call charges","190595245","17/05/2019","Parking Services","Car Parks Operational Staff","R4505"
"Wolverhampton City Council","http://opendatacommunities.org/id/metropolitan-district-council/wolverhampton","702126","BT (Phone Bills)","138.40","Comms - Telephone Call charges","190595242","17/05/2019","Parking Services","Car Parks Operational Staff","R4505"
"Wolverhampton City Council","http://opendatacommunities.org/id/metropolitan-district-council/wolverhampton","702126","BT (Phone Bills)","139.20","Comms - Telephone Call charges","190595244","17/05/2019","Parking Services","Car Parks Operational Staff","R4505"
"Wolverhampton City Council","http://opendatacommunities.org/id/metropolitan-district-council/wolverhampton","702126","BT (Phone Bills)","92.85","Services - Assistive technology","190592492","10/05/2019","Adults Assessment & Care Management North","CSDP","R4407"
"Wolverhampton City Council","http://opendatacommunities.org/id/metropolitan-district-council/wolverhampton","702126","BT (Phone Bills)","378.95","Services - Assistive technology","190592491","10/05/2019","Adults Assessment & Care Management North","CSDP","R4407"
"Wolverhampton City Council","http://opendatacommunities.org/id/metropolitan-district-council/wolverhampton","702126","BT (Phone Bills)","25.90","Fixtures and Fittings - R&M","190592077","10/05/2019","Facilities Management","Victoria Square, Block 11","R2502"
"Wolverhampton City Council","http://opendatacommunities.org/id/metropolitan-district-council/wolverhampton","702126","BT (Phone Bills)","89.95","Services - Assistive technology","190592490","10/05/2019","Adults Assessment & Care Management North","CSDP","R4407"
"Wolverhampton City Council","http://opendatacommunities.org/id/metropolitan-district-council/wolverhampton","702126","BT (Phone Bills)","378.95","Services - Assistive technology","190592494","10/05/2019","Adults Assessment & Care Management North","CSDP","R4407"
"Wolverhampton City Council","http://opendatacommunities.org/id/metropolitan-district-council/wolverhampton","702126","BT (Phone Bills)","92.85","Services - Assistive technology","190592495","10/05/2019","Adults Assessment & Care Management North","CSDP","R4407"
"Wolverhampton City Council","http://opendatacommunities.org/id/metropolitan-district-council/wolverhampton","702126","BT (Phone Bills)","66.00","Fixtures and Fittings - R&M","190589332","01/05/2019","Facilities Management","Management of Vacant Properties","R2502"
"Wolverhampton City Council","http://opendatacommunities.org/id/metropolitan-district-council/wolverhampton","702126","BT (Phone Bills)","2,120.10","Equipment - Hire","130254265","22/05/2019","Operation & Maintenance of Existing Network","UTC Wolverhampton","R4001"
"Wolverhampton City Council","http://opendatacommunities.org/id/metropolitan-district-council/wolverhampton","702126","BT (Phone Bills)","-70.00","Equipment - Hire","130250612","01/05/2019","Operation & Maintenance of Existing Network","UTC Wolverhampton","R4001"
"Wolverhampton City Council","http://opendatacommunities.org/id/metropolitan-district-council/wolverhampton","702126","BT (Phone Bills)","92.85","Services - Assistive technology","190592489","10/05/2019","Adults Assessment & Care Management North","CSDP","R4407"
"Wolverhampton City Council","http://opendatacommunities.org/id/metropolitan-district-council/wolverhampton","702126","BT (Phone Bills)","89.95","Services - Assistive technology","190592493","10/05/2019","Adults Assessment & Care Management North","CSDP","R4407"
"Wolverhampton City Council","http://opendatacommunities.org/id/metropolitan-district-council/wolverhampton","702126","BT (Phone Bills)","1,043.00","Equipment - Hire","130253174","10/05/2019","Operation & Maintenance of Existing Network","UTC Wolverhampton","R4001"
"Wolverhampton City Council","http://opendatacommunities.org/id/metropolitan-district-council/wolverhampton","702126","BT (Phone Bills)","40.00","Comms - Telephone Call charges","190595243","17/05/2019","Parking Services","Car Parks Operational Staff","R4505"
"Wolverhampton City Council","http://opendatacommunities.org/id/metropolitan-district-council/wolverhampton","702126","BT (Phone Bills)","79.30","Fixtures and Fittings - R&M","190595266","17/05/2019","Facilities Management","Management of Vacant Properties","R2502"
"Wolverhampton City Council","http://opendatacommunities.org/id/metropolitan-district-council/wolverhampton","702126","BT (Phone Bills)","1,211.22","Equipment - Hire","130253037","08/05/2019","Operation & Maintenance of Existing Network","UTC Wolverhampton","R4001"
"Wolverhampton City Council","http://opendatacommunities.org/id/metropolitan-district-council/wolverhampton","702135","British Youth Council","540.00","Subscriptions","130254549","24/05/2019","Children & Young People In Care","Corporate Parenting","R4701"
"Wolverhampton City Council","http://opendatacommunities.org/id/metropolitan-district-council/wolverhampton","702157","Browne Jacobson Llp","1,089.50","Insurance - General","190597277","22/05/2019","Audit Services","Legal Liability","R4962"
"Wolverhampton City Council","http://opendatacommunities.org/id/metropolitan-district-council/wolverhampton","702157","Browne Jacobson Llp","252.00","Insurance - General","130251049","22/05/2019","Audit Services","Legal Liability","R4962"
"Wolverhampton City Council","http://opendatacommunities.org/id/metropolitan-district-council/wolverhampton","702157","Browne Jacobson Llp","2,607.50","Insurance - General","190599729","31/05/2019","Audit Services","Legal Liability","R4962"
"Wolverhampton City Council","http://opendatacommunities.org/id/metropolitan-district-council/wolverhampton","702157","Browne Jacobson Llp","5,132.50","Insurance - General","190591894","08/05/2019","Audit Services","Legal Liability","R4962"
"Wolverhampton City Council","http://opendatacommunities.org/id/metropolitan-district-council/wolverhampton","702164","Bruton Knowles","6,062.00","Services - Professional Fees","130253177","29/05/2019","Estates and Valuations","Estates and Valuations Team","R4400"
"Wolverhampton City Council","http://opendatacommunities.org/id/metropolitan-district-council/wolverhampton","702164","Bruton Knowles","3,800.00","Services - Professional Fees","130250614","15/05/2019","Estates and Valuations","Estates and Valuations Team","R4400"
"Wolverhampton City Council","http://opendatacommunities.org/id/metropolitan-district-council/wolverhampton","702164","Bruton Knowles","9,180.00","Services - Professional Fees","130253175","17/05/2019","Corporate Asset Management","Strategic Asset Management Team","R4400"
"Wolverhampton City Council","http://opendatacommunities.org/id/metropolitan-district-council/wolverhampton","702164","Bruton Knowles","18,875.00","Services - Professional Fees","130251221","29/05/2019","Estates and Valuations","Estates and Valuations Team","R4400"
"Wolverhampton City Council","http://opendatacommunities.org/id/metropolitan-district-council/wolverhampton","702164","Bruton Knowles","1,000.00","Services - Professional Fees","130254551","29/05/2019","Estates and Valuations","Estates and Valuations Team","R4400"
"Wolverhampton City Council","http://opendatacommunities.org/id/metropolitan-district-council/wolverhampton","702164","Bruton Knowles","3,850.00","Services - Professional Fees","130253799","29/05/2019","Housing","Wholly Owned Company - Operations","R4400"
"Wolverhampton City Council","http://opendatacommunities.org/id/metropolitan-district-council/wolverhampton","702164","Bruton Knowles","9,720.00","Services - Professional Fees","130253176","29/05/2019","Estates and Valuations","Disposal Costs","R4400"
"Wolverhampton City Council","http://opendatacommunities.org/id/metropolitan-district-council/wolverhampton","702164","Bruton Knowles","950.00","Services - Professional Fees","130250613","01/05/2019","City Development","City Development  - Core Team","R4400"
"Wolverhampton City Council","http://opendatacommunities.org/id/metropolitan-district-council/wolverhampton","702164","Bruton Knowles","6,000.00","Services - Professional Fees","130249648","01/05/2019","Estates and Valuations","Estates and Valuations Team","R4400"
"Wolverhampton City Council","http://opendatacommunities.org/id/metropolitan-district-council/wolverhampton","702171","BT (Business)","135.70","Comms - Telephone Rental","130254701","24/05/2019","Visitor Economy","Box Office Administration","R4504"
"Wolverhampton City Council","http://opendatacommunities.org/id/metropolitan-district-council/wolverhampton","702172","BT Global","11,042.40","Equipment - Hire","130252518","10/05/2019","Operation & Maintenance of Existing Network","UTC - Sandwell MBC","R4001"
"Wolverhampton City Council","http://opendatacommunities.org/id/metropolitan-district-council/wolverhampton","702172","BT Global","32,289.43","Equipment - Hire","130252515","08/05/2019","Operation & Maintenance of Existing Network","UTC Dudley","R4001"
"Wolverhampton City Council","http://opendatacommunities.org/id/metropolitan-district-council/wolverhampton","702172","BT Global","12,446.00","Plant, Equipment, Machinery & Computer Hardware","130252513","08/05/2019","-","GF - Accessing Growth Fund","C3000"
"Wolverhampton City Council","http://opendatacommunities.org/id/metropolitan-district-council/wolverhampton","702172","BT Global","49,497.93","Equipment - Hire","130252514","08/05/2019","Operation & Maintenance of Existing Network","UTC Wolverhampton","R4001"
"Wolverhampton City Council","http://opendatacommunities.org/id/metropolitan-district-council/wolverhampton","702172","BT Global","33,838.03","Equipment - Hire","130252517","10/05/2019","Operation & Maintenance of Existing Network","Walsall Recovery Costs","R4001"
"Wolverhampton City Council","http://opendatacommunities.org/id/metropolitan-district-council/wolverhampton","702172","BT Global","12,137.64","Equipment - Hire","130252516","10/05/2019","Operation & Maintenance of Existing Network","UTC - Solihull MBC","R4001"
"Wolverhampton City Council","http://opendatacommunities.org/id/metropolitan-district-council/wolverhampton","702179","Bulk Minerals Limited","-606.63","Materials","130252411","15/05/2019","Environmental Maintenance","Direct Schools","R4007"
"Wolverhampton City Council","http://opendatacommunities.org/id/metropolitan-district-council/wolverhampton","702179","Bulk Minerals Limited","606.63","Materials","130247972","15/05/2019","Environmental Maintenance","Direct Schools","R4007"
"Wolverhampton City Council","http://opendatacommunities.org/id/metropolitan-district-council/wolverhampton","702181","United Living","-35,019.00","Construction and Conversion","130251222","15/05/2019","-","Refurbishment of Voids","C1100"
"Wolverhampton City Council","http://opendatacommunities.org/id/metropolitan-district-council/wolverhampton","702181","United Living","433,333.00","Construction and Conversion","130253534","15/05/2019","-","Refurbishment of Voids","C1100"
"Wolverhampton City Council","http://opendatacommunities.org/id/metropolitan-district-council/wolverhampton","702181","United Living","1,244,244.00","Construction and Conversion","130253532","15/05/2019","-","Decent Homes - Stock Improvements","C1100"
"Wolverhampton City Council","http://opendatacommunities.org/id/metropolitan-district-council/wolverhampton","702181","United Living","70,833.00","R&M - Departmental planned (external)","130254552","24/05/2019","Housing Revenue Account","Amounts to be Settled with Wolverhampton Homes","R2001"
"Wolverhampton City Council","http://opendatacommunities.org/id/metropolitan-district-council/wolverhampton","702181","United Living","100,833.00","Construction and Conversion","130253533","15/05/2019","-","Structural works","C1100"
"Wolverhampton City Council","http://opendatacommunities.org/id/metropolitan-district-council/wolverhampton","702181","United Living","207,655.00","Construction and Conversion","130253531","15/05/2019","-","Decent Homes - Stock Improvements","C1100"
"Wolverhampton City Council","http://opendatacommunities.org/id/metropolitan-district-council/wolverhampton","702201","Bury M.B.C","10,862.73","TPP - Payments to Local Authorities","130252519","01/05/2019","Special Educational Needs","SEN Education OOC","R5100"
"Wolverhampton City Council","http://opendatacommunities.org/id/metropolitan-district-council/wolverhampton","702207","Bushbury Hill Emb Limited","787.92","TPP - Payments to voluntary groups","130250253","01/05/2019","Headstart","Headstart - Commissioned Activity","R5200"
"Wolverhampton City Council","http://opendatacommunities.org/id/metropolitan-district-council/wolverhampton","702207","Bushbury Hill Emb Limited","1,570.77","TPP - Payments to voluntary groups","130250253","01/05/2019","Headstart","Headstart - Commissioned Activity","R5200"
"Wolverhampton City Council","http://opendatacommunities.org/id/metropolitan-district-council/wolverhampton","702231","Bytes Software Services Limited","289.23","Computing - Purchase of Software","130251350","03/05/2019","Regional Adoption Agency Consortium","Regional Adoption Agency","R4531"
"Wolverhampton City Council","http://opendatacommunities.org/id/metropolitan-district-council/wolverhampton","702253","C P Davidson & Sons Limited","3,960.00","Hire of Vehicles","190598249","29/05/2019","Fleet Services","Fleet Management","R3200"
"Wolverhampton City Council","http://opendatacommunities.org/id/metropolitan-district-council/wolverhampton","702253","C P Davidson & Sons Limited","3,960.00","Hire of Vehicles","190598248","29/05/2019","Fleet Services","Fleet Management","R3200"
"Wolverhampton City Council","http://opendatacommunities.org/id/metropolitan-district-council/wolverhampton","702253","C P Davidson & Sons Limited","3,780.00","Hire of Vehicles","190593424","15/05/2019","Fleet Services","Fleet Management","R3200"
"Wolverhampton City Council","http://opendatacommunities.org/id/metropolitan-district-council/wolverhampton","702253","C P Davidson & Sons Limited","3,780.00","Hire of Vehicles","190593425","15/05/2019","Fleet Services","Fleet Management","R3200"
"Wolverhampton City Council","http://opendatacommunities.org/id/metropolitan-district-council/wolverhampton","702269","Caci Limited (Social Software)","11,685.17","Computing - Maint Agreements","130252412","22/05/2019","Youth Offending","Youth Offending Team","R4534"
"Wolverhampton City Council","http://opendatacommunities.org/id/metropolitan-district-council/wolverhampton","702273","Cale Access  UK Ltd (Cale Briparc)","374.00","Equipment - R & M","130252413","29/05/2019","Parking Services","Car Parks Operational Staff","R4003"
"Wolverhampton City Council","http://opendatacommunities.org/id/metropolitan-district-council/wolverhampton","702273","Cale Access  UK Ltd (Cale Briparc)","239.16","Equipment - R & M","130251054","22/05/2019","Parking Services","On Street Parking","R4003"
"Wolverhampton City Council","http://opendatacommunities.org/id/metropolitan-district-council/wolverhampton","702273","Cale Access  UK Ltd (Cale Briparc)","289.00","Equipment - R & M","130252520","24/05/2019","Parking Services","On Street Parking","R4003"
"Wolverhampton City Council","http://opendatacommunities.org/id/metropolitan-district-council/wolverhampton","702273","Cale Access  UK Ltd (Cale Briparc)","139.22","Equipment - R & M","130253800","31/05/2019","Parking Services","On Street Parking","R4003"
"Wolverhampton City Council","http://opendatacommunities.org/id/metropolitan-district-council/wolverhampton","702273","Cale Access  UK Ltd (Cale Briparc)","351.50","Equipment - R & M","130242713","24/05/2019","Parking Services","Car Parks Operational Staff","R4003"
"Wolverhampton City Council","http://opendatacommunities.org/id/metropolitan-district-council/wolverhampton","702296","Canford Audio PLC","168.00","Equipment - Purchase","130251723","10/05/2019","Public Protection","Environmental Crime and Consumer Protection","R4000"
"Wolverhampton City Council","http://opendatacommunities.org/id/metropolitan-district-council/wolverhampton","702296","Canford Audio PLC","2.75","Equipment - Purchase","130251723","10/05/2019","Public Protection","Environmental Crime and Consumer Protection","R4000"
"Wolverhampton City Council","http://opendatacommunities.org/id/metropolitan-district-council/wolverhampton","702306","Capita Business Serv Limited","174,989.22","Computing - Maint Agreements","130252653","03/05/2019","ICTS","Strategic ICTS (ICT Service Budget)","R4534"
"Wolverhampton City Council","http://opendatacommunities.org/id/metropolitan-district-council/wolverhampton","702306","Capita Business Serv Limited","1,000.00","Computing - Repair and Maint","130252654","15/05/2019","Local Economy","Global Budgets","R4533"
"Wolverhampton City Council","http://opendatacommunities.org/id/metropolitan-district-council/wolverhampton","702306","Capita Business Serv Limited","6,000.00","Services - Bank Charges","130254061","29/05/2019","Central Corporate Budgets","Corporate Management (Bank Charges)","R4403"
"Wolverhampton City Council","http://opendatacommunities.org/id/metropolitan-district-council/wolverhampton","702306","Capita Business Serv Limited","2,000.00","Services - Bank Charges","130253801","29/05/2019","Central Corporate Budgets","Corporate Management (Bank Charges)","R4403"
"Wolverhampton City Council","http://opendatacommunities.org/id/metropolitan-district-council/wolverhampton","702306","Capita Business Serv Limited","299.32","Computing - Purchase of Software","130254060","17/05/2019","Licensing","Licensing - General","R4531"
"Wolverhampton City Council","http://opendatacommunities.org/id/metropolitan-district-council/wolverhampton","702334","HAS Technology Limited","6,883.50","Computing - Maint Agreements","130253180","10/05/2019","Strategic Commissioning","Head of Strategic Commissioning","R4534"
"Wolverhampton City Council","http://opendatacommunities.org/id/metropolitan-district-council/wolverhampton","702338","Care Shop","670.40","Equipment - Purchase","130252523","22/05/2019","Older People Provider Services","Older People Provider Management","R4000"
"Wolverhampton City Council","http://opendatacommunities.org/id/metropolitan-district-council/wolverhampton","702372","C�Art Art Transport Limited","-449.57","Services - Professional Fees","130247006","15/05/2019","Visitor Economy","Contemporary Gallery - NPO ACE WAG","R4400"
"Wolverhampton City Council","http://opendatacommunities.org/id/metropolitan-district-council/wolverhampton","702372","C�Art Art Transport Limited","498.00","Services - Professional Fees","130252133","15/05/2019","Visitor Economy","Collections","R4400"
"Wolverhampton City Council","http://opendatacommunities.org/id/metropolitan-district-council/wolverhampton","702372","C�Art Art Transport Limited","300.00","Services - Professional Fees","130246589","15/05/2019","Visitor Economy","Contemporary Gallery - NPO ACE WAG","R4400"
"Wolverhampton City Council","http://opendatacommunities.org/id/metropolitan-district-council/wolverhampton","702380","Carver (Wolverhampton) Limited","261.54","Materials","130253921","17/05/2019","Maintenance Programme","Civic Centre Repairs & Maintenance","R4007"
"Wolverhampton City Council","http://opendatacommunities.org/id/metropolitan-district-council/wolverhampton","702380","Carver (Wolverhampton) Limited","294.00","Materials","130255154","31/05/2019","Environmental Maintenance","Ground Maintenance East","R4007"
"Wolverhampton City Council","http://opendatacommunities.org/id/metropolitan-district-council/wolverhampton","702380","Carver (Wolverhampton) Limited","56.37","Materials","130255006","31/05/2019","Bereavement Services","Bereavement services - Grounds maintenance","R4007"
"Wolverhampton City Council","http://opendatacommunities.org/id/metropolitan-district-council/wolverhampton","702380","Carver (Wolverhampton) Limited","325.45","Materials","130255152","31/05/2019","Street Lighting","Street Lighting Maintenance","R4007"
"Wolverhampton City Council","http://opendatacommunities.org/id/metropolitan-district-council/wolverhampton","702380","Carver (Wolverhampton) Limited","479.70","Materials","130255156","31/05/2019","Bereavement Services","Bereavement services - Grounds maintenance","R4007"
"Wolverhampton City Council","http://opendatacommunities.org/id/metropolitan-district-council/wolverhampton","702380","Carver (Wolverhampton) Limited","294.00","Cleaning Supplies and Materials","130255153","31/05/2019","Environmental Maintenance","Ground Maintenance East","R2705"
"Wolverhampton City Council","http://opendatacommunities.org/id/metropolitan-district-council/wolverhampton","702391","Castlecroft Medical Practice","1,775.00","TPP - Public Health Contracts","190596486","22/05/2019","Healthy Life Expectancy","Healthy Lifestyles","R5060"
"Wolverhampton City Council","http://opendatacommunities.org/id/metropolitan-district-council/wolverhampton","702391","Castlecroft Medical Practice","84.00","TPP - Public Health Contracts","190596485","22/05/2019","Healthy Life Expectancy","Healthy Lifestyles","R5060"
"Wolverhampton City Council","http://opendatacommunities.org/id/metropolitan-district-council/wolverhampton","702391","Castlecroft Medical Practice","200.00","TPP - Public Health Contracts","190588702","01/05/2019","Starting and Developing Well","Sexual Health","R5060"
"Wolverhampton City Council","http://opendatacommunities.org/id/metropolitan-district-council/wolverhampton","702391","Castlecroft Medical Practice","500.00","TPP - Public Health Contracts","190588699","01/05/2019","Starting and Developing Well","Sexual Health","R5060"
"Wolverhampton City Council","http://opendatacommunities.org/id/metropolitan-district-council/wolverhampton","702391","Castlecroft Medical Practice","480.00","TPP - Public Health Contracts","190588698","01/05/2019","Starting and Developing Well","Sexual Health","R5060"
"Wolverhampton City Council","http://opendatacommunities.org/id/metropolitan-district-council/wolverhampton","702391","Castlecroft Medical Practice","125.00","TPP - Public Health Contracts","190588700","01/05/2019","Starting and Developing Well","Sexual Health","R5060"
"Wolverhampton City Council","http://opendatacommunities.org/id/metropolitan-district-council/wolverhampton","702391","Castlecroft Medical Practice","270.00","TPP - Public Health Contracts","190588697","01/05/2019","Starting and Developing Well","Sexual Health","R5060"
"Wolverhampton City Council","http://opendatacommunities.org/id/metropolitan-district-council/wolverhampton","702391","Castlecroft Medical Practice","450.00","TPP - Public Health Contracts","190588696","01/05/2019","Starting and Developing Well","Sexual Health","R5060"
"Wolverhampton City Council","http://opendatacommunities.org/id/metropolitan-district-council/wolverhampton","702391","Castlecroft Medical Practice","75.00","TPP - Public Health Contracts","190588701","01/05/2019","Starting and Developing Well","Sexual Health","R5060"
"Wolverhampton City Council","http://opendatacommunities.org/id/metropolitan-district-council/wolverhampton","702395","Catch 22 Charity Limited-Midlands&North.","600.00","Grant Payments","130251523","10/05/2019","Community Safety","SWP - Gangs","R4700"
"Wolverhampton City Council","http://opendatacommunities.org/id/metropolitan-district-council/wolverhampton","702396","Cater Walsh Reporting Ltd","79.63","Services - Professional Fees","130254342","29/05/2019","Legal Services","Centralised External Legal Costs","R4400"
"Wolverhampton City Council","http://opendatacommunities.org/id/metropolitan-district-council/wolverhampton","702396","Cater Walsh Reporting Ltd","68.06","Services - Professional Fees","130252323","08/05/2019","Legal Services","Centralised External Legal Costs","R4400"
"Wolverhampton City Council","http://opendatacommunities.org/id/metropolitan-district-council/wolverhampton","702396","Cater Walsh Reporting Ltd","188.45","Services - Professional Fees","130254343","29/05/2019","Legal Services","Centralised External Legal Costs","R4400"
"Wolverhampton City Council","http://opendatacommunities.org/id/metropolitan-district-council/wolverhampton","702396","Cater Walsh Reporting Ltd","67.51","Services - Professional Fees","130252324","08/05/2019","Legal Services","Centralised External Legal Costs","R4400"
"Wolverhampton City Council","http://opendatacommunities.org/id/metropolitan-district-council/wolverhampton","702401","Caterpillars Nursery Co UK Limited","1,697.76","TPP - Private Nursery Education Funding","190596450","22/05/2019","Early Years","Early Years Entitlement Funding for Disadvantaged 2 Year Olds","R5035"
"Wolverhampton City Council","http://opendatacommunities.org/id/metropolitan-district-council/wolverhampton","702401","Caterpillars Nursery Co UK Limited","19,737.00","TPP - Private Nursery Education Funding","190596458","22/05/2019","Early Years","Early Years Universal Entitlement for 3 and 4 Year Olds","R5035"
"Wolverhampton City Council","http://opendatacommunities.org/id/metropolitan-district-council/wolverhampton","702450","GO Carz","1,032.00","Client Transport","130253802","29/05/2019","Special Educational Needs","Primary - Transport","R3042"
"Wolverhampton City Council","http://opendatacommunities.org/id/metropolitan-district-council/wolverhampton","702450","GO Carz","444.00","Client Transport","130253803","29/05/2019","Special Educational Needs","Secondary- Transport","R3042"
"Wolverhampton City Council","http://opendatacommunities.org/id/metropolitan-district-council/wolverhampton","702450","GO Carz","960.00","Client Transport","130253425","29/05/2019","Special Educational Needs","Special - Transport","R3042"
"Wolverhampton City Council","http://opendatacommunities.org/id/metropolitan-district-council/wolverhampton","702450","GO Carz","987.56","Client Transport","130253538","29/05/2019","Special Educational Needs","Special - Transport","R3042"
"Wolverhampton City Council","http://opendatacommunities.org/id/metropolitan-district-council/wolverhampton","702450","GO Carz","1,155.72","Client Transport","130253182","29/05/2019","Children & Young People In Care","Childrens with Disabilities Team","R3042"
"Wolverhampton City Council","http://opendatacommunities.org/id/metropolitan-district-council/wolverhampton","702450","GO Carz","516.00","Client Transport","130253542","29/05/2019","Special Educational Needs","Special - Transport","R3042"
"Wolverhampton City Council","http://opendatacommunities.org/id/metropolitan-district-council/wolverhampton","702450","GO Carz","1,250.60","Client Transport","130253539","29/05/2019","Special Educational Needs","Special - Transport","R3042"
"Wolverhampton City Council","http://opendatacommunities.org/id/metropolitan-district-council/wolverhampton","702450","GO Carz","600.00","Client Transport","130253537","29/05/2019","Special Educational Needs","Primary - Transport","R3042"
"Wolverhampton City Council","http://opendatacommunities.org/id/metropolitan-district-council/wolverhampton","702450","GO Carz","52.00","Section 17","130252325","17/05/2019","Strengthening Families","Court Team","R6403"
"Wolverhampton City Council","http://opendatacommunities.org/id/metropolitan-district-council/wolverhampton","702450","GO Carz","1,032.00","Client Transport","130253424","29/05/2019","Special Educational Needs","Primary - Transport","R3042"
"Wolverhampton City Council","http://opendatacommunities.org/id/metropolitan-district-council/wolverhampton","702450","GO Carz","899.93","Client Transport","130253423","29/05/2019","Special Educational Needs","Special - Transport","R3042"
"Wolverhampton City Council","http://opendatacommunities.org/id/metropolitan-district-council/wolverhampton","702450","GO Carz","1,273.36","Client Transport","130253422","29/05/2019","Special Educational Needs","Special - Transport","R3042"
"Wolverhampton City Council","http://opendatacommunities.org/id/metropolitan-district-council/wolverhampton","702450","GO Carz","444.00","Client Transport","130253536","29/05/2019","Special Educational Needs","Primary - Transport","R3042"
"Wolverhampton City Council","http://opendatacommunities.org/id/metropolitan-district-council/wolverhampton","702450","GO Carz","88.48","Client Transport","130253181","29/05/2019","Children & Young People In Care","LAC Transitions Team","R3042"
"Wolverhampton City Council","http://opendatacommunities.org/id/metropolitan-district-council/wolverhampton","702450","GO Carz","57.96","Client Transport","130254062","29/05/2019","Emergency Duty Team","Emergency Duty Team","R3042"
"Wolverhampton City Council","http://opendatacommunities.org/id/metropolitan-district-council/wolverhampton","702450","GO Carz","180.00","Client Transport","130253421","29/05/2019","Special Educational Needs","Special - Transport","R3042"
"Wolverhampton City Council","http://opendatacommunities.org/id/metropolitan-district-council/wolverhampton","702450","GO Carz","370.00","Client Transport","130253541","29/05/2019","Special Educational Needs","Special - Transport","R3042"
"Wolverhampton City Council","http://opendatacommunities.org/id/metropolitan-district-council/wolverhampton","702450","GO Carz","1,019.76","Client Transport","130253540","29/05/2019","Special Educational Needs","Secondary- Transport","R3042"
"Wolverhampton City Council","http://opendatacommunities.org/id/metropolitan-district-council/wolverhampton","702452","Central Workwear","40.75","Services - Professional Fees","130252656","29/05/2019","Public Service Reform","Mayoral Expenses","R4400"
"Wolverhampton City Council","http://opendatacommunities.org/id/metropolitan-district-council/wolverhampton","702452","Central Workwear","1,084.83","Laundry Expenses","130252655","29/05/2019","Catering","Education Catering - General Overheads","R4202"
"Wolverhampton City Council","http://opendatacommunities.org/id/metropolitan-district-council/wolverhampton","702484","Charles Endirect Limited","916.80","Materials","130252031","01/05/2019","Street Lighting","Street Lighting Maintenance","R4007"
"Wolverhampton City Council","http://opendatacommunities.org/id/metropolitan-district-council/wolverhampton","702484","Charles Endirect Limited","1,062.20","Materials","130252031","01/05/2019","Street Lighting","Street Lighting Maintenance","R4007"
"Wolverhampton City Council","http://opendatacommunities.org/id/metropolitan-district-council/wolverhampton","702484","Charles Endirect Limited","195.60","Materials","130252031","01/05/2019","Street Lighting","Street Lighting Maintenance","R4007"
"Wolverhampton City Council","http://opendatacommunities.org/id/metropolitan-district-council/wolverhampton","702484","Charles Endirect Limited","77.76","Materials","130252031","01/05/2019","Street Lighting","Street Lighting Maintenance","R4007"
"Wolverhampton City Council","http://opendatacommunities.org/id/metropolitan-district-council/wolverhampton","702484","Charles Endirect Limited","295.00","Materials","130252031","01/05/2019","Street Lighting","Street Lighting Maintenance","R4007"
"Wolverhampton City Council","http://opendatacommunities.org/id/metropolitan-district-council/wolverhampton","702484","Charles Endirect Limited","577.20","Materials","130252031","01/05/2019","Street Lighting","Street Lighting Maintenance","R4007"
"Wolverhampton City Council","http://opendatacommunities.org/id/metropolitan-district-council/wolverhampton","702484","Charles Endirect Limited","52.00","Materials","130252031","01/05/2019","Street Lighting","Street Lighting Maintenance","R4007"
"Wolverhampton City Council","http://opendatacommunities.org/id/metropolitan-district-council/wolverhampton","702484","Charles Endirect Limited","198.12","Materials","130253922","17/05/2019","Street Lighting","Street Lighting Maintenance","R4007"
"Wolverhampton City Council","http://opendatacommunities.org/id/metropolitan-district-council/wolverhampton","702497","Charterhouse Voice & Data PLC","717.00","Computing - Purchase of Hardware","130252524","24/05/2019","Schools","Westacre Infant School","R4530"
"Wolverhampton City Council","http://opendatacommunities.org/id/metropolitan-district-council/wolverhampton","702497","Charterhouse Voice & Data PLC","279.11","Comms - Telephone Call charges","130251237","08/05/2019","ICTS","Strategic ICTS (ICT Service Budget)","R4505"
"Wolverhampton City Council","http://opendatacommunities.org/id/metropolitan-district-council/wolverhampton","702530","Chipside Limited","335.80","Computing - Purchase of Hardware","130255157","31/05/2019","Parking Services","Parking Enforcement","R4530"
"Wolverhampton City Council","http://opendatacommunities.org/id/metropolitan-district-council/wolverhampton","702543","Chubb Fire & Security Limited","681.93","Services - Security","130250887","15/05/2019","Bereavement Services","Cemeteries","R4405"
"Wolverhampton City Council","http://opendatacommunities.org/id/metropolitan-district-council/wolverhampton","702543","Chubb Fire & Security Limited","272.60","Services - Security","130252414","24/05/2019","Maintenance Programme","Centralised R&M","R4405"
"Wolverhampton City Council","http://opendatacommunities.org/id/metropolitan-district-council/wolverhampton","702543","Chubb Fire & Security Limited","35.00","Services - Security","130251056","31/05/2019","Maintenance Programme","Centralised R&M","R4405"
"Wolverhampton City Council","http://opendatacommunities.org/id/metropolitan-district-council/wolverhampton","702543","Chubb Fire & Security Limited","237.76","Services - Security","130253183","31/05/2019","Maintenance Programme","Centralised R&M","R4405"
"Wolverhampton City Council","http://opendatacommunities.org/id/metropolitan-district-council/wolverhampton","702543","Chubb Fire & Security Limited","143.10","Services - Security","130251352","17/05/2019","Maintenance Programme","Centralised R&M","R4405"
"Wolverhampton City Council","http://opendatacommunities.org/id/metropolitan-district-council/wolverhampton","702543","Chubb Fire & Security Limited","196.44","Services - Security","130250619","17/05/2019","Bereavement Services","Cemeteries","R4405"
"Wolverhampton City Council","http://opendatacommunities.org/id/metropolitan-district-council/wolverhampton","702543","Chubb Fire & Security Limited","152.64","Services - Security","130250471","08/05/2019","Maintenance Programme","Centralised R&M","R4405"
"Wolverhampton City Council","http://opendatacommunities.org/id/metropolitan-district-council/wolverhampton","702543","Chubb Fire & Security Limited","149.20","Services - Security","130251055","22/05/2019","Maintenance Programme","Centralised R&M","R4405"
"Wolverhampton City Council","http://opendatacommunities.org/id/metropolitan-district-council/wolverhampton","702579","City Of Wolverhampton College","2,000.00","Marketing \ Non-staff advertising","130253677","15/05/2019","Skills","Apprenticeship Scheme","R4317"
"Wolverhampton City Council","http://opendatacommunities.org/id/metropolitan-district-council/wolverhampton","702579","City Of Wolverhampton College","3,629.10","Electricity","130253676","17/05/2019","Adult Education","Old Hall Street Main","R2100"
"Wolverhampton City Council","http://opendatacommunities.org/id/metropolitan-district-council/wolverhampton","702643","Cobalt Telephone Technologies Limited","2,002.40","Computing - Maint Agreements","130253184","24/05/2019","Parking Services","Car Parks Operational Staff","R4534"
"Wolverhampton City Council","http://opendatacommunities.org/id/metropolitan-district-council/wolverhampton","702653","Codsall Middle School","3,272.00","TPP - Alternative Provision of Education","130254888","29/05/2019","Special Educational Needs","SEN Education OOC","R5037"
"Wolverhampton City Council","http://opendatacommunities.org/id/metropolitan-district-council/wolverhampton","702685","Digraph Transport Supplies Ltd","40.08","Equipment - Purchase","190592427","10/05/2019","Fleet Services","Fleet Management","R4000"
"Wolverhampton City Council","http://opendatacommunities.org/id/metropolitan-district-council/wolverhampton","702685","Digraph Transport Supplies Ltd","14.13","Equipment - Purchase","190592427","10/05/2019","Fleet Services","Fleet Management","R4000"
"Wolverhampton City Council","http://opendatacommunities.org/id/metropolitan-district-council/wolverhampton","702685","Digraph Transport Supplies Ltd","48.70","Equipment - Purchase","190592426","10/05/2019","Fleet Services","Fleet Management","R4000"
"Wolverhampton City Council","http://opendatacommunities.org/id/metropolitan-district-council/wolverhampton","702685","Digraph Transport Supplies Ltd","39.42","Equipment - Purchase","190592426","10/05/2019","Fleet Services","Fleet Management","R4000"
"Wolverhampton City Council","http://opendatacommunities.org/id/metropolitan-district-council/wolverhampton","702685","Digraph Transport Supplies Ltd","132.32","Equipment - Purchase","190592428","10/05/2019","Fleet Services","Fleet Management","R4000"
"Wolverhampton City Council","http://opendatacommunities.org/id/metropolitan-district-council/wolverhampton","702685","Digraph Transport Supplies Ltd","34.72","Equipment - Purchase","190589263","01/05/2019","Fleet Services","Fleet Management","R4000"
"Wolverhampton City Council","http://opendatacommunities.org/id/metropolitan-district-council/wolverhampton","702685","Digraph Transport Supplies Ltd","42.72","Equipment - Purchase","190589263","01/05/2019","Fleet Services","Fleet Management","R4000"
"Wolverhampton City Council","http://opendatacommunities.org/id/metropolitan-district-council/wolverhampton","702685","Digraph Transport Supplies Ltd","11.64","Equipment - Purchase","190589263","01/05/2019","Fleet Services","Fleet Management","R4000"
"Wolverhampton City Council","http://opendatacommunities.org/id/metropolitan-district-council/wolverhampton","702685","Digraph Transport Supplies Ltd","68.68","Equipment - Purchase","190589263","01/05/2019","Fleet Services","Fleet Management","R4000"
"Wolverhampton City Council","http://opendatacommunities.org/id/metropolitan-district-council/wolverhampton","702685","Digraph Transport Supplies Ltd","55.92","Equipment - Purchase","190589263","01/05/2019","Fleet Services","Fleet Management","R4000"
"Wolverhampton City Council","http://opendatacommunities.org/id/metropolitan-district-council/wolverhampton","702685","Digraph Transport Supplies Ltd","46.80","Equipment - Purchase","190589262","01/05/2019","Fleet Services","Fleet Management","R4000"
"Wolverhampton City Council","http://opendatacommunities.org/id/metropolitan-district-council/wolverhampton","702685","Digraph Transport Supplies Ltd","192.56","Equipment - Purchase","190597251","22/05/2019","Fleet Services","Fleet Management","R4000"
"Wolverhampton City Council","http://opendatacommunities.org/id/metropolitan-district-council/wolverhampton","702685","Digraph Transport Supplies Ltd","15.50","Equipment - Purchase","190597253","22/05/2019","Fleet Services","Fleet Management","R4000"
"Wolverhampton City Council","http://opendatacommunities.org/id/metropolitan-district-council/wolverhampton","702685","Digraph Transport Supplies Ltd","48.14","Equipment - Purchase","190597252","22/05/2019","Fleet Services","Fleet Management","R4000"
"Wolverhampton City Council","http://opendatacommunities.org/id/metropolitan-district-council/wolverhampton","702685","Digraph Transport Supplies Ltd","15.80","Equipment - Purchase","190597250","22/05/2019","Fleet Services","Fleet Management","R4000"
"Wolverhampton City Council","http://opendatacommunities.org/id/metropolitan-district-council/wolverhampton","702697","Community Transport","1,506.60","Client Transport","130254344","22/05/2019","Special Educational Needs","Special - Transport","R3042"
"Wolverhampton City Council","http://opendatacommunities.org/id/metropolitan-district-council/wolverhampton","702697","Community Transport","1,098.00","Client Transport","130254345","22/05/2019","Special Educational Needs","Special - Transport","R3042"
"Wolverhampton City Council","http://opendatacommunities.org/id/metropolitan-district-council/wolverhampton","702717","Computershare Vouchers(Ex Busy Bees)","777.17","Service Charges","130254470","24/05/2019","The Hub","Busy Bees Childcare Vouchers","R2205"
"Wolverhampton City Council","http://opendatacommunities.org/id/metropolitan-district-council/wolverhampton","702717","Computershare Vouchers(Ex Busy Bees)","743.24","Service Charges","130252326","01/05/2019","The Hub","Busy Bees Childcare Vouchers","R2205"
"Wolverhampton City Council","http://opendatacommunities.org/id/metropolitan-district-council/wolverhampton","702719","Concentric","520.00","Client Allowances","190593791","15/05/2019","Children & Young People In Care","Looked After Team 2","R6301"
"Wolverhampton City Council","http://opendatacommunities.org/id/metropolitan-district-council/wolverhampton","702723","Concept Elevators (UK) Ltd","5,640.30","R&M - Departmental planned (external)","130253678","17/05/2019","Corporate Asset Management","Centralised Planned Maintenance","R2001"
"Wolverhampton City Council","http://opendatacommunities.org/id/metropolitan-district-council/wolverhampton","702723","Concept Elevators (UK) Ltd","6,355.50","R&M - Departmental planned (external)","130252658","08/05/2019","Maintenance Programme","Centralised R&M","R2001"
"Wolverhampton City Council","http://opendatacommunities.org/id/metropolitan-district-council/wolverhampton","702723","Concept Elevators (UK) Ltd","45.00","R&M - Departmental planned (external)","130253185","22/05/2019","Maintenance Programme","Centralised R&M","R2001"
"Wolverhampton City Council","http://opendatacommunities.org/id/metropolitan-district-council/wolverhampton","702723","Concept Elevators (UK) Ltd","108.00","R&M - Departmental planned (external)","130253924","22/05/2019","Maintenance Programme","Centralised R&M","R2001"
"Wolverhampton City Council","http://opendatacommunities.org/id/metropolitan-district-council/wolverhampton","702723","Concept Elevators (UK) Ltd","288.00","R&M - Departmental planned (external)","130252242","03/05/2019","Maintenance Programme","Centralised R&M","R2001"
"Wolverhampton City Council","http://opendatacommunities.org/id/metropolitan-district-council/wolverhampton","702723","Concept Elevators (UK) Ltd","1,194.00","R&M - Departmental planned (external)","130252657","08/05/2019","Maintenance Programme","Centralised R&M","R2001"
"Wolverhampton City Council","http://opendatacommunities.org/id/metropolitan-district-council/wolverhampton","702723","Concept Elevators (UK) Ltd","63.00","R&M - Departmental planned (external)","130251724","03/05/2019","Maintenance Programme","Centralised R&M","R2001"
"Wolverhampton City Council","http://opendatacommunities.org/id/metropolitan-district-council/wolverhampton","702723","Concept Elevators (UK) Ltd","90.00","R&M - Departmental planned (external)","130252241","01/05/2019","Maintenance Programme","Centralised R&M","R2001"
"Wolverhampton City Council","http://opendatacommunities.org/id/metropolitan-district-council/wolverhampton","702723","Concept Elevators (UK) Ltd","337.00","R&M - Departmental planned (external)","130252243","01/05/2019","Maintenance Programme","Centralised R&M","R2001"
"Wolverhampton City Council","http://opendatacommunities.org/id/metropolitan-district-council/wolverhampton","702723","Concept Elevators (UK) Ltd","75.00","R&M - Departmental planned (external)","130252244","03/05/2019","Maintenance Programme","Centralised R&M","R2001"
"Wolverhampton City Council","http://opendatacommunities.org/id/metropolitan-district-council/wolverhampton","702741","MIR Sheward Musical Instrument repairs","265.00","Services - Professional Fees","130252525","08/05/2019","School Planning & Resources","Music Support Team","R4400"
"Wolverhampton City Council","http://opendatacommunities.org/id/metropolitan-district-council/wolverhampton","702758","Conwy County Borough Council","8,679.00","Business Rates","190591524","08/05/2019","Corporate Asset Management","NNDR","R2300"
"Wolverhampton City Council","http://opendatacommunities.org/id/metropolitan-district-council/wolverhampton","702766","Cooper Mobile Services Ltd","1,840.52","Vehicle Maintenance - Repairs","130253680","15/05/2019","Waste and Recycling Service","Waste Collection and Recycling Service - General","R3022"
"Wolverhampton City Council","http://opendatacommunities.org/id/metropolitan-district-council/wolverhampton","702766","Cooper Mobile Services Ltd","3,150.00","Hire of Vehicles","190593422","15/05/2019","Fleet Services","Fleet Management","R3200"
"Wolverhampton City Council","http://opendatacommunities.org/id/metropolitan-district-council/wolverhampton","702766","Cooper Mobile Services Ltd","1,840.52","Vehicle Maintenance - Repairs","130253806","15/05/2019","Waste and Recycling Service","Waste Collection and Recycling Service - General","R3022"
"Wolverhampton City Council","http://opendatacommunities.org/id/metropolitan-district-council/wolverhampton","702766","Cooper Mobile Services Ltd","3,080.00","Hire of Vehicles","190594856","15/05/2019","Fleet Services","Fleet Management","R3200"
"Wolverhampton City Council","http://opendatacommunities.org/id/metropolitan-district-council/wolverhampton","702766","Cooper Mobile Services Ltd","840.00","Hire of Vehicles","130253679","15/05/2019","Waste and Recycling Service","Waste Collection and Recycling Service - General","R3200"
"Wolverhampton City Council","http://opendatacommunities.org/id/metropolitan-district-council/wolverhampton","702766","Cooper Mobile Services Ltd","500.00","Insurance - General","130250473","01/05/2019","Environmental Maintenance","Parks - Ranger Service","R4962"
"Wolverhampton City Council","http://opendatacommunities.org/id/metropolitan-district-council/wolverhampton","702766","Cooper Mobile Services Ltd","784.00","Insurance - General","130250473","01/05/2019","Audit Services","Motor Vehicles","R4962"
"Wolverhampton City Council","http://opendatacommunities.org/id/metropolitan-district-council/wolverhampton","702766","Cooper Mobile Services Ltd","1,892.00","Hire of Vehicles","190594855","15/05/2019","Fleet Services","Fleet Management","R3200"
"Wolverhampton City Council","http://opendatacommunities.org/id/metropolitan-district-council/wolverhampton","702766","Cooper Mobile Services Ltd","1,604.21","Vehicle Maintenance - Repairs","130251872","01/05/2019","Waste and Recycling Service","Waste Man.Partnership-General","R3022"
"Wolverhampton City Council","http://opendatacommunities.org/id/metropolitan-district-council/wolverhampton","702766","Cooper Mobile Services Ltd","1,923.21","Vehicle Maintenance - Repairs","130254346","22/05/2019","Waste and Recycling Service","Waste Man.Partnership-General","R3022"
"Wolverhampton City Council","http://opendatacommunities.org/id/metropolitan-district-council/wolverhampton","702766","Cooper Mobile Services Ltd","290.00","Services - Professional Fees","190594865","15/05/2019","Fleet Services","Fleet Management","R4400"
"Wolverhampton City Council","http://opendatacommunities.org/id/metropolitan-district-council/wolverhampton","702766","Cooper Mobile Services Ltd","21.75","Services - Professional Fees","190594865","15/05/2019","Fleet Services","Fleet Management","R4400"
"Wolverhampton City Council","http://opendatacommunities.org/id/metropolitan-district-council/wolverhampton","702766","Cooper Mobile Services Ltd","106.00","Services - Professional Fees","190594865","15/05/2019","Fleet Services","Fleet Management","R4400"
"Wolverhampton City Council","http://opendatacommunities.org/id/metropolitan-district-council/wolverhampton","702786","Costa Ltd","1,475.75","Provisions (Resale)","130252526","22/05/2019","Catering","Civic Centre Catering","R4102"
"Wolverhampton City Council","http://opendatacommunities.org/id/metropolitan-district-council/wolverhampton","702786","Costa Ltd","759.65","Provisions (Resale)","130252527","22/05/2019","Leisure Services","WV Active Catering","R4102"
"Wolverhampton City Council","http://opendatacommunities.org/id/metropolitan-district-council/wolverhampton","702786","Costa Ltd","1,239.69","Provisions (Resale)","130250264","01/05/2019","Catering","Civic Centre Catering","R4102"
"Wolverhampton City Council","http://opendatacommunities.org/id/metropolitan-district-council/wolverhampton","702786","Costa Ltd","462.29","Provisions (Resale)","130252416","22/05/2019","Leisure Services","Bert Williams Leisure Centre Caf�","R4102"
"Wolverhampton City Council","http://opendatacommunities.org/id/metropolitan-district-council/wolverhampton","702786","Costa Ltd","613.77","Provisions (Resale)","130253186","29/05/2019","Leisure Services","WV Active Catering","R4102"
"Wolverhampton City Council","http://opendatacommunities.org/id/metropolitan-district-council/wolverhampton","702786","Costa Ltd","464.15","Equipment - Purchase","130251725","15/05/2019","Catering","West Park Tea Room","R4000"
"Wolverhampton City Council","http://opendatacommunities.org/id/metropolitan-district-council/wolverhampton","702793","Cottage Blinds Contracts Limited","2,340.00","R&M - Departmental planned (external)","130252134","01/05/2019","Facilities Management","Culwell Street Depot","R2001"
"Wolverhampton City Council","http://opendatacommunities.org/id/metropolitan-district-council/wolverhampton","702796","Cougar Monitoring Limited","5,040.00","Services - Security","130252839","10/05/2019","Estates and Valuations","Industrial Premises ; Fordhouse Road","R4405"
"Wolverhampton City Council","http://opendatacommunities.org/id/metropolitan-district-council/wolverhampton","702796","Cougar Monitoring Limited","8,064.00","Services - Security","130252838","08/05/2019","Facilities Management","Culwell Street Depot","R4405"
"Wolverhampton City Council","http://opendatacommunities.org/id/metropolitan-district-council/wolverhampton","702796","Cougar Monitoring Limited","8,064.00","Services - Security","130252837","08/05/2019","Facilities Management","Hickman Avenue Depot","R4405"
"Wolverhampton City Council","http://opendatacommunities.org/id/metropolitan-district-council/wolverhampton","702819","CPAG Limited","-50.83","Subscriptions","130239978","08/05/2019","Community Financial Support","Welfare Rights","R4701"
"Wolverhampton City Council","http://opendatacommunities.org/id/metropolitan-district-council/wolverhampton","702819","CPAG Limited","120.00","Subscriptions","130251239","08/05/2019","Community Financial Support","Welfare Rights","R4701"
"Wolverhampton City Council","http://opendatacommunities.org/id/metropolitan-district-council/wolverhampton","702821","Cpl Petroleum","1,091.51","Inventories","190597235","22/05/2019","-","General Fund Balance Sheet","B3000"
"Wolverhampton City Council","http://opendatacommunities.org/id/metropolitan-district-council/wolverhampton","702821","Cpl Petroleum","20,649.66","Inventories","190597236","22/05/2019","-","General Fund Balance Sheet","B3000"
"Wolverhampton City Council","http://opendatacommunities.org/id/metropolitan-district-council/wolverhampton","702821","Cpl Petroleum","20,428.94","Inventories","190597234","22/05/2019","-","General Fund Balance Sheet","B3000"
"Wolverhampton City Council","http://opendatacommunities.org/id/metropolitan-district-council/wolverhampton","702828","Craemer UK Limited","4,615.38","TPP - Waste Disposal","130254347","29/05/2019","Waste and Recycling Service","Waste Collection and Recycling Service - General","R5003"
"Wolverhampton City Council","http://opendatacommunities.org/id/metropolitan-district-council/wolverhampton","702828","Craemer UK Limited","4,615.38","TPP - Waste Disposal","130253925","29/05/2019","Waste and Recycling Service","Waste Collection and Recycling Service - General","R5003"
"Wolverhampton City Council","http://opendatacommunities.org/id/metropolitan-district-council/wolverhampton","702828","Craemer UK Limited","4,615.38","TPP - Waste Disposal","130253927","31/05/2019","Waste and Recycling Service","Waste Collection and Recycling Service - General","R5003"
"Wolverhampton City Council","http://opendatacommunities.org/id/metropolitan-district-council/wolverhampton","702863","Credential Environmental Limited","51.60","TPP - Waste Disposal","130250889","03/05/2019","Environmental Maintenance","Ground Maintenance East","R5003"
"Wolverhampton City Council","http://opendatacommunities.org/id/metropolitan-district-council/wolverhampton","702863","Credential Environmental Limited","19.20","TPP - Waste Disposal","130252135","22/05/2019","Environmental Maintenance","Ground Maintenance East","R5003"
"Wolverhampton City Council","http://opendatacommunities.org/id/metropolitan-district-council/wolverhampton","702903","CTT (Wolverhampton) Limited","1,700.00","Client Transport","130255163","31/05/2019","Special Educational Needs","Special - Transport","R3042"
"Wolverhampton City Council","http://opendatacommunities.org/id/metropolitan-district-council/wolverhampton","702903","CTT (Wolverhampton) Limited","1,615.00","Client Transport","130255164","31/05/2019","Special Educational Needs","Special - Transport","R3042"
"Wolverhampton City Council","http://opendatacommunities.org/id/metropolitan-district-council/wolverhampton","702903","CTT (Wolverhampton) Limited","1,520.00","Client Transport","130255165","31/05/2019","Special Educational Needs","Special - Transport","R3042"
"Wolverhampton City Council","http://opendatacommunities.org/id/metropolitan-district-council/wolverhampton","702903","CTT (Wolverhampton) Limited","950.00","Client Transport","130253188","10/05/2019","Special Educational Needs","Special - Transport","R3042"
"Wolverhampton City Council","http://opendatacommunities.org/id/metropolitan-district-council/wolverhampton","702903","CTT (Wolverhampton) Limited","1,218.00","Client Transport","130253189","10/05/2019","Special Educational Needs","Special - Transport","R3042"
"Wolverhampton City Council","http://opendatacommunities.org/id/metropolitan-district-council/wolverhampton","702903","CTT (Wolverhampton) Limited","1,200.00","Client Transport","130254066","17/05/2019","Special Educational Needs","Special - Transport","R3042"
"Wolverhampton City Council","http://opendatacommunities.org/id/metropolitan-district-council/wolverhampton","702903","CTT (Wolverhampton) Limited","1,140.00","Client Transport","130253187","10/05/2019","Special Educational Needs","Special - Transport","R3042"
"Wolverhampton City Council","http://opendatacommunities.org/id/metropolitan-district-council/wolverhampton","702910","Cummings Brothers","331.02","Materials","130254471","29/05/2019","Bereavement Services","Bereavement services - Grounds maintenance","R4007"
"Wolverhampton City Council","http://opendatacommunities.org/id/metropolitan-district-council/wolverhampton","702910","Cummings Brothers","12.00","Materials","130252962","15/05/2019","Environmental Maintenance","Parks - Ranger Service","R4007"
"Wolverhampton City Council","http://opendatacommunities.org/id/metropolitan-district-council/wolverhampton","702910","Cummings Brothers","3.50","Materials","130252328","08/05/2019","Environmental Maintenance","Parks - Ranger Service","R4007"
"Wolverhampton City Council","http://opendatacommunities.org/id/metropolitan-district-council/wolverhampton","702910","Cummings Brothers","9.00","Materials","130251525","10/05/2019","Environmental Maintenance","Parks - Ranger Service","R4007"
"Wolverhampton City Council","http://opendatacommunities.org/id/metropolitan-district-council/wolverhampton","702910","Cummings Brothers","7.00","Materials","130251526","10/05/2019","Environmental Maintenance","Parks - Ranger Service","R4007"
"Wolverhampton City Council","http://opendatacommunities.org/id/metropolitan-district-council/wolverhampton","702910","Cummings Brothers","647.50","Equipment - Purchase","130253928","29/05/2019","Environmental Maintenance","Parks - East Area Management","R4000"
"Wolverhampton City Council","http://opendatacommunities.org/id/metropolitan-district-council/wolverhampton","702910","Cummings Brothers","647.50","Equipment - Purchase","130253928","29/05/2019","Environmental Maintenance","Parks - South West Area Management","R4000"
"Wolverhampton City Council","http://opendatacommunities.org/id/metropolitan-district-council/wolverhampton","702910","Cummings Brothers","51.00","Furniture","130246204","15/05/2019","Facilities Management","Civic Centre","R4004"
"Wolverhampton City Council","http://opendatacommunities.org/id/metropolitan-district-council/wolverhampton","702910","Cummings Brothers","124.50","Materials","130252960","15/05/2019","Environmental Maintenance","Ground Maintenance East","R4007"
"Wolverhampton City Council","http://opendatacommunities.org/id/metropolitan-district-council/wolverhampton","702910","Cummings Brothers","50.00","Services - Professional Fees","130253039","15/05/2019","Housing","Private Sector Housing","R4400"
"Wolverhampton City Council","http://opendatacommunities.org/id/metropolitan-district-council/wolverhampton","702910","Cummings Brothers","16.00","Furniture","130254350","29/05/2019","Facilities Management","Civic Centre","R4004"
"Wolverhampton City Council","http://opendatacommunities.org/id/metropolitan-district-council/wolverhampton","702910","Cummings Brothers","8.00","Materials","130252961","15/05/2019","Environmental Maintenance","Parks - Ranger Service","R4007"
"Wolverhampton City Council","http://opendatacommunities.org/id/metropolitan-district-council/wolverhampton","702910","Cummings Brothers","42.00","Materials","130254349","29/05/2019","Environmental Maintenance","Parks - Ranger Service","R4007"
"Wolverhampton City Council","http://opendatacommunities.org/id/metropolitan-district-council/wolverhampton","702910","Cummings Brothers","23.50","Materials","130251527","10/05/2019","Environmental Maintenance","Parks - Ranger Service","R4007"
"Wolverhampton City Council","http://opendatacommunities.org/id/metropolitan-district-council/wolverhampton","702910","Cummings Brothers","28.80","Furniture","130254067","22/05/2019","Facilities Management","Civic Centre","R4004"
"Wolverhampton City Council","http://opendatacommunities.org/id/metropolitan-district-council/wolverhampton","702910","Cummings Brothers","140.00","Services - Supplies and Services to service users","130252327","03/05/2019","Safeguarding","Court of Protection, Funerals and Protection of Property","R4408"
"Wolverhampton City Council","http://opendatacommunities.org/id/metropolitan-district-council/wolverhampton","702910","Cummings Brothers","60.00","Furniture","130254069","22/05/2019","Facilities Management","Civic Centre","R4004"
"Wolverhampton City Council","http://opendatacommunities.org/id/metropolitan-district-council/wolverhampton","702910","Cummings Brothers","5.95","Furniture","130254068","22/05/2019","Facilities Management","Civic Centre","R4004"
"Wolverhampton City Council","http://opendatacommunities.org/id/metropolitan-district-council/wolverhampton","702939","D & N Solicitors","350.00","Services - Professional Fees","130252329","01/05/2019","Director of Adults services and Additional Monies","Director of Adults Services","R4400"
"Wolverhampton City Council","http://opendatacommunities.org/id/metropolitan-district-council/wolverhampton","702974","Daisy Communications Limited (Vialtus)","2,289.00","Computing - Internet","130252840","22/05/2019","ICTS","Strategic ICTS (ICT Service Budget)","R4537"
"Wolverhampton City Council","http://opendatacommunities.org/id/metropolitan-district-council/wolverhampton","702996","Darlington Street Methodist Church","360.00","Grant Payments","190592482","10/05/2019","Housing","Supported Accommodation Provider Payments","R4700"
"Wolverhampton City Council","http://opendatacommunities.org/id/metropolitan-district-council/wolverhampton","702998","Dartington Hall Trust","2,203.59","Training Expenses","130254070","22/05/2019","Public Service Reform","Centralised Training","R1650"
"Wolverhampton City Council","http://opendatacommunities.org/id/metropolitan-district-council/wolverhampton","703037","Dawn Cherrington","90.00","Training Expenses","130250629","01/05/2019","Public Service Reform","Centralised Training","R1650"
"Wolverhampton City Council","http://opendatacommunities.org/id/metropolitan-district-council/wolverhampton","703043","Places for People Leisure Management","160.00","TPP - Public Health Contracts","130252136","15/05/2019","Healthy Life Expectancy","Healthy Lifestyles","R5060"
"Wolverhampton City Council","http://opendatacommunities.org/id/metropolitan-district-council/wolverhampton","703043","Places for People Leisure Management","2,783.00","TPP - Public Health Contracts","130252246","17/05/2019","Healthy Life Expectancy","Healthy Lifestyles","R5060"
"Wolverhampton City Council","http://opendatacommunities.org/id/metropolitan-district-council/wolverhampton","703044","DC Projects (Wolverhampton) Limited","152,727.78","TPP - Other contractors","130250268","01/05/2019","Leisure Services","Leisure P.F.I.Scheme","R5099"
"Wolverhampton City Council","http://opendatacommunities.org/id/metropolitan-district-council/wolverhampton","703044","DC Projects (Wolverhampton) Limited","154,599.21","TPP - Other contractors","130253190","29/05/2019","Leisure Services","Leisure P.F.I.Scheme","R5099"
"Wolverhampton City Council","http://opendatacommunities.org/id/metropolitan-district-council/wolverhampton","703050","De Lage Landen Leasing Limited","1,060.76","Services - Professional Fees","130252528","29/05/2019","Human Resources","Salary Sacrifice Schemes","R4400"
"Wolverhampton City Council","http://opendatacommunities.org/id/metropolitan-district-council/wolverhampton","703050","De Lage Landen Leasing Limited","856.76","Services - Professional Fees","130250630","01/05/2019","Human Resources","Salary Sacrifice Schemes","R4400"
"Wolverhampton City Council","http://opendatacommunities.org/id/metropolitan-district-council/wolverhampton","703050","De Lage Landen Leasing Limited","1,089.46","Services - Professional Fees","130252137","17/05/2019","Human Resources","Salary Sacrifice Schemes","R4400"
"Wolverhampton City Council","http://opendatacommunities.org/id/metropolitan-district-council/wolverhampton","703050","De Lage Landen Leasing Limited","1,425.39","Services - Professional Fees","130251528","10/05/2019","Human Resources","Salary Sacrifice Schemes","R4400"
"Wolverhampton City Council","http://opendatacommunities.org/id/metropolitan-district-council/wolverhampton","703050","De Lage Landen Leasing Limited","588.17","Services - Professional Fees","130251726","10/05/2019","Human Resources","Salary Sacrifice Schemes","R4400"
"Wolverhampton City Council","http://opendatacommunities.org/id/metropolitan-district-council/wolverhampton","703050","De Lage Landen Leasing Limited","856.76","Services - Professional Fees","130253191","31/05/2019","Human Resources","Salary Sacrifice Schemes","R4400"
"Wolverhampton City Council","http://opendatacommunities.org/id/metropolitan-district-council/wolverhampton","703066","Demco Europe Limited","1,958.00","Furniture","130250890","01/05/2019","Local Economy","Community Recreation Community Centre","R4004"
"Wolverhampton City Council","http://opendatacommunities.org/id/metropolitan-district-council/wolverhampton","703074","Dennis Eagle Limited","72.80","Equipment - Purchase","190592432","10/05/2019","Fleet Services","Fleet Management","R4000"
"Wolverhampton City Council","http://opendatacommunities.org/id/metropolitan-district-council/wolverhampton","703074","Dennis Eagle Limited","189.43","Services - Professional Fees","190597240","22/05/2019","Fleet Services","Fleet Management","R4400"
"Wolverhampton City Council","http://opendatacommunities.org/id/metropolitan-district-council/wolverhampton","703074","Dennis Eagle Limited","84.19","Services - Professional Fees","190597240","22/05/2019","Fleet Services","Fleet Management","R4400"
"Wolverhampton City Council","http://opendatacommunities.org/id/metropolitan-district-council/wolverhampton","703074","Dennis Eagle Limited","52.74","Equipment - Purchase","190597255","22/05/2019","Fleet Services","Fleet Management","R4000"
"Wolverhampton City Council","http://opendatacommunities.org/id/metropolitan-district-council/wolverhampton","703074","Dennis Eagle Limited","51.25","Equipment - Purchase","190597255","22/05/2019","Fleet Services","Fleet Management","R4000"
"Wolverhampton City Council","http://opendatacommunities.org/id/metropolitan-district-council/wolverhampton","703074","Dennis Eagle Limited","23.20","Equipment - Purchase","190597255","22/05/2019","Fleet Services","Fleet Management","R4000"
"Wolverhampton City Council","http://opendatacommunities.org/id/metropolitan-district-council/wolverhampton","703074","Dennis Eagle Limited","24.46","Equipment - Purchase","190597255","22/05/2019","Fleet Services","Fleet Management","R4000"
"Wolverhampton City Council","http://opendatacommunities.org/id/metropolitan-district-council/wolverhampton","703074","Dennis Eagle Limited","32.20","Equipment - Purchase","190597255","22/05/2019","Fleet Services","Fleet Management","R4000"
"Wolverhampton City Council","http://opendatacommunities.org/id/metropolitan-district-council/wolverhampton","703074","Dennis Eagle Limited","85.25","Equipment - Purchase","190589273","01/05/2019","Fleet Services","Fleet Management","R4000"
"Wolverhampton City Council","http://opendatacommunities.org/id/metropolitan-district-council/wolverhampton","703074","Dennis Eagle Limited","456.95","Equipment - Purchase","190592429","10/05/2019","Fleet Services","Fleet Management","R4000"
"Wolverhampton City Council","http://opendatacommunities.org/id/metropolitan-district-council/wolverhampton","703074","Dennis Eagle Limited","54.74","Equipment - Purchase","190592430","10/05/2019","Fleet Services","Fleet Management","R4000"
"Wolverhampton City Council","http://opendatacommunities.org/id/metropolitan-district-council/wolverhampton","703074","Dennis Eagle Limited","73.24","Equipment - Purchase","190592431","10/05/2019","Fleet Services","Fleet Management","R4000"
"Wolverhampton City Council","http://opendatacommunities.org/id/metropolitan-district-council/wolverhampton","703074","Dennis Eagle Limited","36.28","Equipment - Purchase","190589272","01/05/2019","Fleet Services","Fleet Management","R4000"
"Wolverhampton City Council","http://opendatacommunities.org/id/metropolitan-district-council/wolverhampton","703074","Dennis Eagle Limited","48.60","Equipment - Purchase","190589272","01/05/2019","Fleet Services","Fleet Management","R4000"
"Wolverhampton City Council","http://opendatacommunities.org/id/metropolitan-district-council/wolverhampton","703074","Dennis Eagle Limited","499.50","Equipment - Purchase","190589270","01/05/2019","Fleet Services","Fleet Management","R4000"
"Wolverhampton City Council","http://opendatacommunities.org/id/metropolitan-district-council/wolverhampton","703074","Dennis Eagle Limited","14.43","Equipment - Purchase","190589274","01/05/2019","Fleet Services","Fleet Management","R4000"
